Workbook

Sheet FORS
A4: STATISTIKK
A7: FOR
A10: MÅLEVIRKSOMHETEN
A14: 2015
A15: NB: Alle timefortjenester er før eventuelt trekk av målegebyr | I15: Passord dokumentbeskyttelse:<Retur>

Sheet ÅRSTOT
A2: ="MÅLESTATISTIKK ALLE BYGGFAG - 1. HALVÅR "&FORS!$A$14 -> MÅLESTATISTIKK ALLE BYGGFAG - 1. HALVÅR 2015
B4: Målesum i kroner | D4: Timer | F4: ="Fortjeneste 1. halvår "&FORS!$A$14-0 -> Fortjeneste 1. halvår 2015 | I4: =" 1. halvår "&FORS!$A$14-1 -> 1. halvår 2014 | L4: Endringer i %
B5: Innmålt m/ | C5: Innmålt m/ | D5: Innmålt m/ | E5: Innmålt m/ | F5: Innmålt m/ | G5: Innmålt m/ | H5: Gjennom- | I5: Innmålt m/ | J5: Innmålt m/ | K5: Gjen.snitt | L5: Innmålt m/ | M5: Gjen.snitt
B6: overskudd | C6: underskudd | D6: overskudd | E6: underskudd | F6: overskudd | G6: underskudd | H6: snitt | I6: overskudd | J6: underskudd | K6: fortjeneste | L6: overskudd | M6: fortjeneste
A7: Agder | B7: =BETONG!B7+TØMRERE!B7+MALERE!B7+TAKTEKKERE!B7+MURERE!B7 -> 10755402 | C7: =BETONG!C7+TØMRERE!C7+MALERE!C7+TAKTEKKERE!C7+MURERE!C7 -> 0 | D7: =BETONG!D7+TØMRERE!D7+MALERE!D7+TAKTEKKERE!D7+MURERE!D7 -> 40504 | E7: =BETONG!E7+TØMRERE!E7+MALERE!E7+TAKTEKKERE!E7+MURERE!E7 -> 0 | F7: =IF(D7=0,0,B7/D7) -> 265.5392554 | G7: 0 | H7: =IF(D7+E7=0,0,(B7+C7)/(D7+E7)) -> 265.5392554 | I7: 11478088 | J7: 667399 | K7: 264.2161286 | L7: =IF(I7=0,0,(B7-I7)/I7) -> -0.06296222855 | M7: =(H7-K7)/K7 -> 0.005007744145
A8: Bergen | B8: =BETONG!B8+TØMRERE!B8+MALERE!B8+RØRLEGGERE!B7+MURERE!B8+TAKTEKKERE!B11 -> 49166471.15 | C8: =BETONG!C8+TØMRERE!C8+MALERE!C8+RØRLEGGERE!C7+MURERE!C8+TAKTEKKERE!C11 -> 0 | D8: =BETONG!D8+TØMRERE!D8+MALERE!D8+RØRLEGGERE!D7+MURERE!D8+TAKTEKKERE!D11 -> 180045.15 | E8: =BETONG!E8+TØMRERE!E8+MALERE!E8+RØRLEGGERE!E7+MURERE!E8+TAKTEKKERE!E11 -> 0 | F8: =IF(D8=0,0,B8/D8) -> 273.0785647 | G8: =IF(E8=0,0,C8/E8) -> 0 | H8: =IF(D8+E8=0,0,(B8+C8)/(D8+E8)) -> 273.0785647 | I8: 14441101.77 | J8: 0 | K8: 266.0550159 | L8: =IF(I8=0,0,(B8-I8)/I8) -> 2.404620501 | M8: =(H8-K8)/K8 -> 0.02639885879
A9: Drammen - Bærum | B9: =BETONG!B9+TØMRERE!B9 -> 0 | C9: =BETONG!C9+TØMRERE!C9 -> 0 | D9: =BETONG!D9+TØMRERE!D9 -> 0 | E9: =BETONG!E9+TØMRERE!E9 -> 0 | F9: 0 | G9: 0 | H9: 0 | I9: 713571.21 | J9: 0 | K9: 260.4274489 | L9: -1 | M9: -1
A10: Glåmdal | B10: =BETONG!B10+TØMRERE!B10+TAKTEKKERE!B9+MURERE!B9+MALERE!B9 -> 1966967.18 | C10: =BETONG!C10+TØMRERE!C10+TAKTEKKERE!C9+MURERE!C9+MALERE!C9 -> 0 | D10: =BETONG!D10+TØMRERE!D10+TAKTEKKERE!D9+MURERE!D9+MALERE!D9 -> 6746 | E10: =BETONG!E10+TØMRERE!E10+TAKTEKKERE!E9+MURERE!E9+MALERE!E9 -> 0 | F10: 291.5753306 | G10: 0 | H10: 291.5753306 | I10: 2029751.5 | J10: 0 | K10: 268.4501389 | L10: -0.03093202296 | M10: 0.08614334041
A11: Haugesund | B11: =BETONG!B11+'BLIKK OG VENTILASJON'!B7+TAKTEKKERE!B8 -> 6789716 | C11: =BETONG!C11++'BLIKK OG VENTILASJON'!C7+TAKTEKKERE!C8 -> 0 | D11: =BETONG!D11++'BLIKK OG VENTILASJON'!D7+TAKTEKKERE!D8 -> 26677.12 | E11: =BETONG!E11++'BLIKK OG VENTILASJON'!E7+TAKTEKKERE!E8 -> 0 | F11: 254.5145803 | G11: 0 | H11: 254.5145803 | I11: 12504112 | J11: 0 | K11: 258.5557853 | L11: -0.4570013448 | M11: -0.01562991538
A12: Hamar og Omegn | B12: =BETONG!B12+TØMRERE!B11+MALERE!B10+TAKTEKKERE!B10+MURERE!B10 -> 9555534.24 | C12: =BETONG!C12+TØMRERE!C11+MALERE!C10+TAKTEKKERE!C10+MURERE!C10 -> 823660.05 | D12: =BETONG!D12+TØMRERE!D11+MALERE!D10+TAKTEKKERE!D10+MURERE!D10 -> 34689.51 | E12: =BETONG!E12+TØMRERE!E11+MALERE!E10+TAKTEKKERE!E10+MURERE!E10 -> 4628.47 | F12: 275.4588992 | G12: 177.955145 | H12: 263.980863 | I12: 7815785.85 | J12: 823915.31 | K12: 229.2025613 | L12: 0.2225941733 | M12: 0.1517360951
A13: Nordland | B13: =BETONG!B13+TØMRERE!B12+MALERE!B11+RØRLEGGERE!B8+MURERE!B11+TAKTEKKERE!B12 -> 7370371 | C13: =BETONG!C13+TØMRERE!C12+MALERE!C11+RØRLEGGERE!C8+MURERE!C11+TAKTEKKERE!C12 -> 675503 | D13: =BETONG!D13+TØMRERE!D12+MALERE!D11+RØRLEGGERE!D8+MURERE!D11+TAKTEKKERE!D12 -> 22863 | E13: =BETONG!E13+TØMRERE!E12+MALERE!E11+RØRLEGGERE!E8+MURERE!E11+TAKTEKKERE!E12 -> 3374 | F13: 322.3711236 | G13: 200.208358 | H13: 306.6613561 | I13: 15005956 | J13: 0 | K13: 293.6816189 | L13: -0.5088369578 | M13: 0.04419662775
A14: Sandnes | B14: =BETONG!B14+MALERE!B12 -> 40738774.36 | C14: =BETONG!C14+MALERE!C12 -> 0 | D14: =BETONG!D14+MALERE!D12 -> 126828.81 | E14: =BETONG!E14+MALERE!E12 -> 0 | F14: 321.2107278 | G14: 0 | H14: 321.2107278 | I14: 49143063.81 | J14: 0 | K14: 310.9485066 | L14: -0.1710167987 | M14: 0.03300296002
A15: Stavanger | B15: =BETONG!B15+TØMRERE!B13+RØRLEGGERE!B9+'BLIKK OG VENTILASJON'!B8+TAKTEKKERE!B13+MURERE!B12 -> 7357788 | C15: =BETONG!C15+TØMRERE!C13+RØRLEGGERE!C9+'BLIKK OG VENTILASJON'!C8+TAKTEKKERE!C13+MURERE!C12 -> 204969 | D15: =BETONG!D15+TØMRERE!D13+RØRLEGGERE!D9+'BLIKK OG VENTILASJON'!D8+TAKTEKKERE!D13+MURERE!D12 -> 26209.5 | E15: =BETONG!E15+TØMRERE!E13+RØRLEGGERE!E9+'BLIKK OG VENTILASJON'!E8+TAKTEKKERE!E13+MURERE!E12 -> 1211 | F15: 280.7298117 | G15: 169.2559868 | H15: 275.8066775 | I15: 9579072 | J15: 194536 | K15: 280.2870089 | L15: -0.2318892686 | M15: -0.01598479866
A16: Telemark | B16: =BETONG!B16+TØMRERE!B14+MALERE!B13+TAKTEKKERE!B14+MURERE!B14 -> 11658182.2 | C16: =BETONG!C16+TØMRERE!C14+MALERE!C13+TAKTEKKERE!C14+MURERE!C14 -> 424120 | D16: =BETONG!D16+TØMRERE!D14+MALERE!D13+TAKTEKKERE!D14+MURERE!D14 -> 43646.68 | E16: =BETONG!E16+TØMRERE!E14+MALERE!E13+TAKTEKKERE!E14+MURERE!E14 -> 2209 | F16: 267.1035277 | G16: 191.9963785 | H16: 263.4854003 | I16: 33694106.8 | J16: 515577 | K16: 259.4471472 | L16: -0.6539993694 | M16: 0.01556483894
A17: Tromsø | B17: =BETONG!B17+MALERE!B14+RØRLEGGERE!B10+TØMRERE!B16+MURERE!B13 -> 1444903 | C17: =BETONG!C17+MALERE!C14+RØRLEGGERE!C10+TØMRERE!C16+MURERE!C13 -> 0 | D17: =BETONG!D17+MALERE!D14+RØRLEGGERE!D10+TØMRERE!D16+MURERE!D13 -> 5813.3 | E17: =BETONG!E17+MALERE!E14+RØRLEGGERE!E10+TØMRERE!E16+MURERE!E13 -> 0 | F17: 248.5512532 | G17: 0 | H17: 248.5512532 | I17: 7329526 | J17: 0 | K17: 253.178791 | L17: -0.802865424 | M17: -0.01827774688
A18: Trondheim | B18: =BETONG!B18+TØMRERE!B15+MALERE!B15+RØRLEGGERE!B11+TAKTEKKERE!B15+MURERE!B15 -> 128528278.5 | C18: =BETONG!C18+TØMRERE!C15+MALERE!C15+RØRLEGGERE!C11+TAKTEKKERE!C15+MURERE!C15 -> 5172886.41 | D18: =BETONG!D18+TØMRERE!D15+MALERE!D15+RØRLEGGERE!D11+TAKTEKKERE!D15+MURERE!D15 -> 456529.33 | E18: =BETONG!E18+TØMRERE!E15+MALERE!E15+RØRLEGGERE!E11+TAKTEKKERE!E15+MURERE!E15 -> 28906.37 | F18: 281.5334526 | G18: 178.9531653 | H18: 275.4250767 | I18: 105934403.3 | J18: 3221500 | K18: 257.0737278 | L18: 0.2132817525 | M18: 0.07138554801
A19: Vestfold | B19: =BETONG!B19+TØMRERE!B17+MALERE!B16+MURERE!B16+TAKTEKKERE!B16 -> 8514783 | C19: =BETONG!C19+TØMRERE!C17+MALERE!C16+MURERE!C16+TAKTEKKERE!C16 -> 435336 | D19: =BETONG!D19+TØMRERE!D17+MALERE!D16+MURERE!D16+TAKTEKKERE!D16 -> 33955.82 | E19: =BETONG!E19+TØMRERE!E17+MALERE!E16+MURERE!E16+TAKTEKKERE!E16 -> 3100 | F19: 250.7606354 | G19: 140.4309677 | H19: 241.5307231 | I19: 4478468 | J19: 0 | K19: 226.4025075 | L19: 0.9012713723 | M19: 0.06682000046
A20: Østfold | B20: =BETONG!B20+TØMRERE!B18+MURERE!B18 -> 16445912.5 | C20: =BETONG!C20+TØMRERE!C18+MURERE!C18 -> 3802314 | D20: =BETONG!D20+TØMRERE!D18+MURERE!D18 -> 57968 | E20: =BETONG!E20+TØMRERE!E18+MURERE!E18 -> 18829.5 | F20: 283.7067434 | G20: 201.9338803 | H20: 263.6573651 | I20: 11663200.5 | J20: 0 | K20: 250.9699392 | L20: 0.4100685742 | M20: 0.0505535682
A21: Oslo | B21: =BETONG!B21+TØMRERE!B19+MALERE!B17+RØRLEGGERE!B12+'BLIKK OG VENTILASJON'!B9+TAKTEKKERE!B17+MURERE!B17+ISOLATØR!B7 -> 70571022.04 | C21: =BETONG!C21+TØMRERE!C19+MALERE!C17+RØRLEGGERE!C12+'BLIKK OG VENTILASJON'!C9+TAKTEKKERE!C17+MURERE!C17+ISOLATØR!C7 -> 288977.45 | D21: =BETONG!D21+TØMRERE!D19+MALERE!D17+RØRLEGGERE!D12+'BLIKK OG VENTILASJON'!D9+TAKTEKKERE!D17+MURERE!D17+ISOLATØR!D7 -> 241793.5 | E21: =BETONG!E21+TØMRERE!E19+MALERE!E17+RØRLEGGERE!E12+'BLIKK OG VENTILASJON'!E9+TAKTEKKERE!E17+MURERE!E17+ISOLATØR!E7 -> 1716.7 | F21: 291.8648435 | G21: 168.33311 | H21: 290.9939686 | I21: 89338612.76 | J21: 582505.85 | K21: 276.5762872 | L21: -0.2100725559 | M21: 0.05212913069
A22: Landet i alt | B22: =SUM(B7:B21) -> 370864105.2 | C22: =SUM(C7:C21) -> 11827765.91 | D22: =SUM(D7:D21) -> 1304269.72 | E22: =SUM(E7:E21) -> 63975.04 | F22: 284.3461743 | G22: 184.8809459 | H22: 279.6954772 | I22: 375148819.5 | J22: 6005433.16 | K22: 268.9102394 | L22: -0.01142137231 | M22: 0.04010720388
A25: ="MÅLESTATISTIKK FOR ALLE BYGGFAG - 2. HALVÅR "&FORS!$A$14 -> MÅLESTATISTIKK FOR ALLE BYGGFAG - 2. HALVÅR 2015
B27: Målesum i kroner | D27: Timer | F27: ="Fortjeneste 2. halvår "&FORS!$A$14-0 -> Fortjeneste 2. halvår 2015 | I27: =" 2. halvår "&FORS!$A$14-1 -> 2. halvår 2014 | L27: Endringer i %
B28: Innmålt m/ | C28: Innmålt m/ | D28: Innmålt m/ | E28: Innmålt m/ | F28: Innmålt m/ | G28: Innmålt m/ | H28: Gjennom- | I28: Innmålt m/ | J28: Innmålt m/ | K28: Gjen.snitt | L28: Innmålt m/ | M28: Gjen.snitt
B29: overskudd | C29: underskudd | D29: overskudd | E29: underskudd | F29: overskudd | G29: underskudd | H29: snitt | I29: overskudd | J29: underskudd | K29: fortjeneste | L29: overskudd | M29: fortjeneste
A30: Agder | B30: =BETONG!B30+TØMRERE!B28+MALERE!B26+TAKTEKKERE!B26+MURERE!B27 -> 10547945 | C30: =BETONG!C30+TØMRERE!C28+MALERE!C26+TAKTEKKERE!C26+MURERE!C27 -> 489063 | D30: =BETONG!D30+TØMRERE!D28+MALERE!D26+TAKTEKKERE!D26+MURERE!D27 -> 38341 | E30: =BETONG!E30+TØMRERE!E28+MALERE!E26+TAKTEKKERE!E26+MURERE!E27 -> 2469 | F30: =IF(D30=0,0,B30/D30) -> 275.1087609 | G30: 198.0814095 | H30: =IF(D30+E30=0,0,(B30+C30)/(D30+E30)) -> 270.4486155 | I30: 13192298 | J30: 16475 | K30: 266.7145828 | L30: =IF(I30=0,0,(B30-I30)/I30) -> -0.2004467304 | M30: =(H30-K30)/K30 -> 0.01400010703
A31: Bergen | B31: =BETONG!B31+TØMRERE!B29+MALERE!B27+RØRLEGGERE!B21+MURERE!B28+TAKTEKKERE!B30 -> 26273018.13 | C31: =BETONG!C31+TØMRERE!C29+MALERE!C27+RØRLEGGERE!C21+MURERE!C28+TAKTEKKERE!C30 -> 0 | D31: =BETONG!D31+TØMRERE!D29+MALERE!D27+RØRLEGGERE!D21+MURERE!D28+TAKTEKKERE!D30 -> 97931.82 | E31: =BETONG!E31+TØMRERE!E29+MALERE!E27+RØRLEGGERE!E21+MURERE!E28+TAKTEKKERE!E30 -> 0 | F31: 268.278667 | G31: 0 | H31: 268.278667 | I31: 28455483 | J31: 0 | K31: 271.245647 | L31: =IF(I31=0,0,(B31-I31)/I31) -> -0.07669751626 | M31: =(H31-K31)/K31 -> -0.01093835039
A32: Drammen - Bærum | B32: =BETONG!B32+TØMRERE!B30 -> 4188998.73 | C32: =BETONG!C32+TØMRERE!C30 -> 0 | D32: =BETONG!D32+TØMRERE!D30 -> 11612.28 | E32: =BETONG!E32+TØMRERE!E30 -> 0 | F32: 360.7386947 | G32: 0 | H32: 360.7386947 | I32: 3063199.76 | J32: 0 | K32: 264.8623904 | L32: 0.3675238503 | M32: 0.3619853474
A33: Glåmdal | B33: =BETONG!B33+TØMRERE!B31+TAKTEKKERE!B28+MURERE!B29+MALERE!B28 -> 0 | C33: =BETONG!C33+TØMRERE!C31+TAKTEKKERE!C28+MURERE!C29+MALERE!C28 -> 0 | D33: =BETONG!D33+TØMRERE!D31+TAKTEKKERE!D28+MURERE!D29+MALERE!D28 -> 0 | E33: =BETONG!E33+TØMRERE!E31+TAKTEKKERE!E28+MURERE!E29+MALERE!E28 -> 0 | F33: 0 | G33: 0 | H33: 0 | I33: 1750464.09 | J33: 0 | K33: 244.631974 | L33: -1 | M33: -1
A34: Haugesund | B34: =BETONG!B34+TAKTEKKERE!B27 -> 10138026 | C34: =BETONG!C34+TAKTEKKERE!C27 -> 0 | D34: =BETONG!D34+TAKTEKKERE!D27 -> 39537.08 | E34: =BETONG!E34+TAKTEKKERE!E27 -> 0 | F34: 256.4181776 | G34: 0 | H34: 256.4181776 | I34: 12609917 | J34: 0 | K34: 253.5395643 | L34: -0.1960275393 | M34: 0.01135370443
A35: Hamar og Omegn | B35: =BETONG!B35+TØMRERE!B32+MALERE!B29+TAKTEKKERE!B29+MURERE!B30 -> 14044132.87 | C35: =BETONG!C35+TØMRERE!C32+MALERE!C29+TAKTEKKERE!C29+MURERE!C30 -> 385742 | D35: =BETONG!D35+TØMRERE!D32+MALERE!D29+TAKTEKKERE!D29+MURERE!D30 -> 51751.15 | E35: =BETONG!E35+TØMRERE!E32+MALERE!E29+TAKTEKKERE!E29+MURERE!E30 -> 2281 | F35: 271.3781794 | G35: 169.1109163 | H35: 267.0609049 | I35: 9200637.99 | J35: 699810 | K35: 248.706858 | L35: 0.5264303286 | M35: 0.07379791225
A36: Nordland | B36: =BETONG!B36+TØMRERE!B33+MALERE!B30+RØRLEGGERE!B22+MURERE!B31+TAKTEKKERE!B31+'BLIKK OG VENTILASJON'!B18 -> 485125 | C36: =BETONG!C36+TØMRERE!C33+MALERE!C30+RØRLEGGERE!C22+MURERE!C31+TAKTEKKERE!C31+'BLIKK OG VENTILASJON'!C18 -> 0 | D36: =BETONG!D36+TØMRERE!D33+MALERE!D30+RØRLEGGERE!D22+MURERE!D31+TAKTEKKERE!D31+'BLIKK OG VENTILASJON'!D18 -> 2001 | E36: =BETONG!E36+TØMRERE!E33+MALERE!E30+RØRLEGGERE!E22+MURERE!E31+TAKTEKKERE!E31+'BLIKK OG VENTILASJON'!E18 -> 0 | F36: 242.4412794 | G36: 0 | H36: 242.4412794 | I36: 5166009 | J36: 0 | K36: 320.0154246 | L36: -0.9060928852 | M36: -0.2424075195
A37: Sandnes | B37: =BETONG!B37+MALERE!B31 -> 33858607.24 | C37: =BETONG!C37++MALERE!C31 -> 0 | D37: =BETONG!D37++MALERE!D31 -> 107364.58 | E37: =BETONG!E37++MALERE!E31 -> 0 | F37: 315.3610552 | G37: 0 | H37: 315.3610552 | I37: 50325400.01 | J37: 0 | K37: 314.8029262 | L37: -0.3272063961 | M37: 0.001772947183
A38: Stavanger | B38: =BETONG!B38+TØMRERE!B34+RØRLEGGERE!B23+'BLIKK OG VENTILASJON'!B19+TAKTEKKERE!B32+MURERE!B32 -> 5573603.78 | C38: =BETONG!C38+TØMRERE!C34+RØRLEGGERE!C23+'BLIKK OG VENTILASJON'!C19+TAKTEKKERE!C32+MURERE!C32 -> 262724.06 | D38: =BETONG!D38+TØMRERE!D34+RØRLEGGERE!D23+'BLIKK OG VENTILASJON'!D19+TAKTEKKERE!D32+MURERE!D32 -> 16759.5 | E38: =BETONG!E38+TØMRERE!E34+RØRLEGGERE!E23+'BLIKK OG VENTILASJON'!E19+TAKTEKKERE!E32+MURERE!E32 -> 1380.3 | F38: 332.5638462 | G38: 190.3383757 | H38: 321.741576 | I38: 5817919 | J38: 525653 | K38: 278.4588912 | L38: -0.04199357537 | M38: 0.1554365336
A39: Telemark | B39: =BETONG!B39+TØMRERE!B35+MALERE!B32+TAKTEKKERE!B33+MURERE!B34 -> 11346916.3 | C39: =BETONG!C39+TØMRERE!C35+MALERE!C32+TAKTEKKERE!C33+MURERE!C34 -> 0 | D39: =BETONG!D39+TØMRERE!D35+MALERE!D32+TAKTEKKERE!D33+MURERE!D34 -> 45658.25 | E39: =BETONG!E39+TØMRERE!E35+MALERE!E32+TAKTEKKERE!E33+MURERE!E34 -> 0 | F39: 248.5184233 | G39: 0 | H39: 248.5184233 | I39: 12609511.93 | J39: 591722.14 | K39: 259.3774672 | L39: -0.1001304124 | M39: -0.04186579516
A40: Tromsø | B40: =BETONG!B40+MALERE!B33+RØRLEGGERE!B24+TØMRERE!B37+MURERE!B33 -> 0 | C40: =BETONG!C40+MALERE!C33+RØRLEGGERE!C24+TØMRERE!C37+MURERE!C33 -> 0 | D40: =BETONG!D40+MALERE!D33+RØRLEGGERE!D24+TØMRERE!D37+MURERE!D33 -> 0 | E40: =BETONG!E40+MALERE!E33+RØRLEGGERE!E24+TØMRERE!E37+MURERE!E33 -> 0 | F40: 0 | G40: 0 | H40: 0 | I40: 2958447 | J40: 0 | K40: 262.9356714 | L40: -1 | M40: -1
A41: Trondheim | B41: =BETONG!B41+TØMRERE!B36+MALERE!B34+RØRLEGGERE!B25+TAKTEKKERE!B34+MURERE!B35 -> 145175352.4 | C41: =BETONG!C41+TØMRERE!C36+MALERE!C34+RØRLEGGERE!C25+TAKTEKKERE!C34+MURERE!C35 -> 11017593.27 | D41: =BETONG!D41+TØMRERE!D36+MALERE!D34+RØRLEGGERE!D25+TAKTEKKERE!D34+MURERE!D35 -> 524932.15 | E41: =BETONG!E41+TØMRERE!E36+MALERE!E34+RØRLEGGERE!E25+TAKTEKKERE!E34+MURERE!E35 -> 63214.55 | F41: 276.5602229 | G41: 174.2888824 | H41: 265.5680048 | I41: 157439054.9 | J41: 8263898 | K41: 271.8585923 | L41: -0.07789491928 | M41: -0.02313918953
A42: Vestfold | B42: =BETONG!B42+TØMRERE!B38+MALERE!B35+MURERE!B36+TAKTEKKERE!B35 -> 2656616 | C42: =BETONG!C42+TØMRERE!C38+MALERE!C35+MURERE!C36+TAKTEKKERE!C35 -> 1644948 | D42: =BETONG!D42+TØMRERE!D38+MALERE!D35+MURERE!D36+TAKTEKKERE!D35 -> 10374.5 | E42: =BETONG!E42+TØMRERE!E38+MALERE!E35+MURERE!E36+TAKTEKKERE!E35 -> 8055 | F42: 256.0717143 | G42: 204.2145251 | H42: 233.4064408 | I42: 918513 | J42: 0 | K42: 270.9877563 | L42: 1.892300926 | M42: -0.1386827068
A43: Østfold | B43: =BETONG!B43+TØMRERE!B39+MURERE!B38 -> 9240390.68 | C43: =BETONG!C43+TØMRERE!C39+MURERE!C38 -> 0 | D43: =BETONG!D43+TØMRERE!D39+MURERE!D38 -> 31840 | E43: =BETONG!E43+TØMRERE!E39+MURERE!E38 -> 0 | F43: 290.2132751 | G43: 0 | H43: 290.2132751 | I43: 11501993 | J43: 872161 | K43: 282.5988079 | L43: -0.196626995 | M43: 0.02694444226
A44: Oslo | B44: =BETONG!B44+TØMRERE!B40+MALERE!B36+RØRLEGGERE!B26+TAKTEKKERE!B36+MURERE!B37 -> 54529578.5 | C44: =BETONG!C44+RØRLEGGERE!C26+TAKTEKKERE!C36 -> 6405994.05 | D44: =BETONG!D44+TØMRERE!D40+MALERE!D36+RØRLEGGERE!D26+'BLIKK OG VENTILASJON'!D20+TAKTEKKERE!D36+MURERE!D37+ISOLATØR!D8 -> 191246.8 | E44: =BETONG!E44+TØMRERE!E40+MALERE!E36+RØRLEGGERE!E26+'BLIKK OG VENTILASJON'!E20+TAKTEKKERE!E36+MURERE!E37+ISOLATØR!E8 -> 34347.4 | F44: 285.1267498 | G44: 186.5059379 | H44: 270.1114326 | I44: 81324662.1 | J44: 415305.15 | K44: 309.5002189 | L44: -0.3294828765 | M44: -0.1272657783
A45: Landet i alt | B45: =SUM(B30:B44) -> 328058310.6 | C45: =SUM(C30:C44) -> 20206064.38 | D45: =SUM(D30:D44) -> 1169350.11 | E45: =SUM(E30:E44) -> 111747.25 | F45: 280.5475519 | G45: 180.8193435 | H45: 271.8484839 | I45: 396333509.8 | J45: 11385024.29 | K45: 282.2699339 | L45: -0.1722670363 | M45: -0.03692015625
A48: ="MÅLESTATISTIKK FOR ALLE BYGGFAG - GJENNOMSNITT HELE ÅRET "&FORS!$A$14 -> MÅLESTATISTIKK FOR ALLE BYGGFAG - GJENNOMSNITT HELE ÅRET 2015
B50: Målesum i kroner | D50: Timer | F50: ="Fortjeneste hele "&FORS!$A$14-0 -> Fortjeneste hele 2015 | I50: =" Hele året "&FORS!$A$14-1 -> Hele året 2014 | L50: Endringer i %
B51: Innmålt m/ | C51: Innmålt m/ | D51: Innmålt m/ | E51: Innmålt m/ | F51: Innmålt m/ | G51: Innmålt m/ | H51: Gjennom- | I51: Innmålt m/ | J51: Innmålt m/ | K51: Gjen.snitt | L51: Innmålt m/ | M51: Gjen.snitt
B52: overskudd | C52: underskudd | D52: overskudd | E52: underskudd | F52: overskudd | G52: underskudd | H52: snitt | I52: overskudd | J52: underskudd | K52: fortjeneste | L52: overskudd | M52: fortjeneste
A53: Agder | B53: =B7+B30 -> 21303347 | C53: 489063 | D53: 78845 | E53: 2469 | F53: =IF(D53=0,0,B53/D53) -> 270.1927453 | G53: 198.0814095 | H53: =IF(D53+E53=0,0,(B53+C53)/(D53+E53)) -> 268.0031729 | I53: 24670386 | J53: 683874 | K53: 265.5118753 | L53: =IF(I53=0,0,(B53-I53)/I53) -> -0.136481002 | M53: =(H53-K53)/K53 -> 0.009382998564
A54: Bergen | B54: =B8+B31 -> 75439489.28 | C54: 0 | D54: 277976.97 | E54: 0 | F54: 271.3875516 | G54: 0 | H54: 271.3875516 | I54: 42896584.77 | J54: 0 | K54: 269.475758 | L54: =IF(I54=0,0,(B54-I54)/I54) -> 0.758636257 | M54: =(H54-K54)/K54 -> 0.007094491826
A55: Drammen - Bærum | B55: =B9+B32 -> 4188998.73 | C55: 0 | D55: 11612.28 | E55: 0 | F55: 360.7386947 | G55: 0 | H55: 360.7386947 | I55: 3776770.97 | J55: 0 | K55: 264.0129302 | L55: 0.1091482018 | M55: 0.3663675276
A56: Glåmdal | B56: =B10+B33 -> 1966967.18 | C56: 0 | D56: 6746 | E56: 0 | F56: 291.5753306 | G56: 0 | H56: 291.5753306 | I56: 3780215.59 | J56: 0 | K56: 256.8692006 | L56: -0.479667989 | M56: 0.1351120723
A57: Haugesund | B57: =B11+B34 -> 16927742 | C57: 0 | D57: 66214.2 | E57: 0 | F57: 255.6512349 | G57: 0 | H57: 255.6512349 | I57: 25114029 | J57: 0 | K57: 256.0125415 | L57: -0.3259647028 | M57: -0.001411284569
A58: Hamar og Omegn | B58: =B12+B35 -> 23599667.11 | C58: 1209402.05 | D58: 86440.66 | E58: 6909.47 | F58: 273.0158135 | G58: 175.0354296 | H58: 265.7636273 | I58: 17016423.84 | J58: 1523725.31 | K58: 239.2206007 | L58: 0.3868758402 | M58: 0.1109562747
A59: Nordland | B59: =B13+B36 -> 7855496 | C59: 675503 | D59: 24864 | E59: 3374 | F59: 315.9385457 | G59: 200.208358 | H59: 302.1105957 | I59: 20171965 | J59: 0 | K59: 300.0039412 | L59: -0.6105735857 | M59: 0.00702208937
A60: Sandnes | B60: 74597381.6 | C60: 0 | D60: 234193.39 | E60: 0 | F60: 318.5289798 | G60: 0 | H60: 318.5289798 | I60: 99468463.82 | J60: 0 | K60: 312.8867541 | L60: -0.2500398746 | M60: 0.0180328046
A61: Stavanger | B61: 12931391.78 | C61: 467693.06 | D61: 42969 | E61: 2591.3 | F61: 300.9470032 | G61: 180.4858797 | H61: 294.0956236 | I61: 15396991 | J61: 720189 | K61: 279.5646216 | L61: -0.1601351342 | M61: 0.05197725634
A62: Telemark | B62: 23005098.5 | C62: 424120 | D62: 89304.93 | E62: 2209 | F62: 257.6016632 | G62: 191.9963785 | H62: 256.0180565 | I62: 46303618.73 | J62: 1107299.14 | K62: 259.4277416 | L62: -0.5031684535 | M62: -0.01314310122
A63: Tromsø | B63: 1444903 | C63: 0 | D63: 5813.3 | E63: 0 | F63: 248.5512532 | G63: 0 | H63: 248.5512532 | I63: 10287973 | J63: 0 | K63: 255.9095409 | L63: -0.859554161 | M63: -0.02875347174
A64: Trondheim | B64: 273703630.9 | C64: 16190479.68 | D64: 981461.48 | E64: 92120.92 | F64: 278.8735335 | G64: 175.7524749 | H64: 270.0250214 | I64: 263373458.2 | J64: 11485398 | K64: 265.7879802 | L64: 0.03922252755 | M64: 0.01594143285
A65: Vestfold | B65: 11171399 | C65: 2080284 | D65: 44330.32 | E65: 11155 | F65: 252.0035723 | G65: 186.4889287 | H65: 238.8322353 | I65: 5396981 | J65: 0 | K65: 232.9246671 | L65: 1.069934839 | M65: 0.02536256978
A66: Østfold | B66: 25686303.18 | C66: 3802314 | D66: 89808 | E66: 18829.5 | F66: 286.0135309 | G66: 201.9338803 | H66: 271.4404987 | I66: 23165193.5 | J66: 872161 | K66: 266.3138451 | L66: 0.1088317989 | M66: 0.01925042103
A67: Oslo | B67: 125100600.5 | C67: 6694971.5 | D67: 433040.3 | E67: 36064.1 | F67: 288.8890492 | G67: 185.6408866 | H67: =IF(D67+E67=0,0,(B67+C67)/(D67+E67)) -> 280.9514727 | I67: 170663274.9 | J67: 997811 | K67: 291.3334793 | L67: -0.2669741007 | M67: -0.03563616026
A68: Landet i alt | B68: =SUM(B53:B67) -> 698922415.8 | C68: =SUM(C53:C67) -> 32033830.29 | D68: =SUM(D53:D67) -> 2473619.83 | E68: =SUM(E53:E67) -> 175722.29 | F68: 282.550458 | G68: 182.298047 | H68: =IF(D68+E68=0,0,(B68+C68)/(D68+E68)) -> 275.9010399 | I68: 771482329.3 | J68: 17390457.45 | K68: 275.653165 | L68: -0.09405259292 | M68: 0.0008992275519

Sheet BETONG
A2: ="MÅLESTATISTIKK FOR BETONGFAGENE - 1. HALVÅR "&FORS!$A$14 -> MÅLESTATISTIKK FOR BETONGFAGENE - 1. HALVÅR 2015
B4: Målesum i kroner | D4: Timer | F4: ="Fortjeneste 1. halvår "&FORS!$A$14-0 -> Fortjeneste 1. halvår 2015 | I4: =" 1. halvår "&FORS!$A$14-1 -> 1. halvår 2014 | L4: Endringer i %
B5: Innmålt m/ | C5: Innmålt m/ | D5: Innmålt m/ | E5: Innmålt m/ | F5: Innmålt m/ | G5: Innmålt m/ | H5: Gjennom- | I5: Innmålt m/ | J5: Innmålt m/ | K5: Gjen.snitt | L5: Innmålt m/ | M5: Gjen.snitt
B6: overskudd | C6: underskudd | D6: overskudd | E6: underskudd | F6: overskudd | G6: underskudd | H6: snitt | I6: overskudd | J6: underskudd | K6: fortjeneste | L6: overskudd | M6: fortjeneste
A7: Agder | B7: 3299282 | D7: 12218 | F7: =IF(D7=0,0,B7/D7) -> 270.0345392 | G7: =IF(E7=0,0,C7/E7) -> 0 | H7: =IF(D7+E7=0,0,(B7+C7)/(D7+E7)) -> 270.0345392 | I7: 5922934 | J7: 417010 | K7: 260.3031697 | L7: =IF(I7=0,0,(B7-I7)/I7) -> -0.4429649225 | M7: =IF(K7=0,0,(H7-K7)/K7) -> 0.03738475243
A8: Bergen | B8: 37393459.1 | D8: 132150.41 | F8: 282.9613552 | G8: 0 | H8: 282.9613552 | I8: 8158613.06 | K8: 281.6043497 | L8: =IF(I8=0,0,(B8-I8)/I8) -> 3.583310769 | M8: =IF(K8=0,0,(H8-K8)/K8) -> 0.004818836926
A9: Drammen - Bærum | F9: 0 | G9: 0 | H9: 0 | I9: 713571.21 | K9: 260.4274489 | L9: -1 | M9: -1
A10: Glåmdal | F10: 0 | G10: 0 | H10: 0 | K10: 0 | L10: 0 | M10: 0
A11: Haugesund | B11: 6789716 | D11: 26677.12 | F11: 254.5145803 | G11: 0 | H11: 254.5145803 | I11: 12504112 | K11: 258.5557853 | L11: -0.4570013448 | M11: -0.01562991538
A12: Hamar og Omegn | B12: 3604653.76 | D12: 12817.48 | F12: 281.2295209 | G12: 0 | H12: 281.2295209 | I12: 1588497.52 | J12: 571180.31 | K12: 210.9748521 | L12: 1.269222152 | M12: 0.3330002039
A13: Nordland | F13: 0 | G13: 0 | H13: 0 | K13: 0 | L13: 0 | M13: 0
A14: Sandnes | B14: 40738774.36 | D14: 126828.81 | F14: 321.2107278 | G14: 0 | H14: 321.2107278 | I14: 49143063.81 | K14: 310.9485066 | L14: -0.1710167987 | M14: 0.03300296002
A15: Stavanger | F15: 0 | G15: 0 | H15: 0 | I15: 1014882 | K15: 290.7971347 | L15: -1 | M15: -1
A16: Telemark | B16: 1165010 | D16: 3506.95 | F16: 332.200345 | G16: 0 | H16: 332.200345 | I16: 5542798.8 | K16: 287.8852572 | L16: -0.7898155712 | M16: 0.1539331615
A17: Tromsø | B17: 1444903 | D17: 5813.3 | F17: 248.5512532 | G17: 0 | H17: 248.5512532 | I17: 5598848 | K17: 254.9253052 | L17: -0.7419285182 | M17: -0.02500360649
A18: Trondheim | B18: 23961984.46 | D18: 83587.91 | F18: 286.6680655 | G18: 0 | H18: 286.6680655 | I18: 26963863.31 | K18: 291.9113841 | L18: -0.1113297014 | M18: -0.01796202172
A19: Vestfold | B19: 2687384 | D19: 10311 | F19: 260.6327223 | G19: 0 | H19: 260.6327223 | K19: 0 | L19: 0 | M19: 0
A20: Østfold | B20: 3241423.5 | C20: 2724456 | D20: 12186 | E20: 13485 | F20: 265.9956918 | G20: 202.03604 | H20: 232.3976277 | I20: 4665152.5 | K20: 259.6728452 | L20: -0.305183807 | M20: -0.1050368493
A21: Oslo | B21: 17793000 | D21: 61264 | F21: 290.4315748 | G21: 0 | H21: 290.4315748 | I21: 20557146 | K21: 251.5928183 | L21: -0.1344615639 | M21: 0.1543714831
A22: Landet i alt | B22: =SUM(B7:B21) -> 142119590.2 | C22: =SUM(C7:C21) -> 2724456 | D22: =SUM(D7:D21) -> 487360.98 | E22: =SUM(E7:E21) -> 13485 | F22: =IF(D22=0,0,B22/D22) -> 291.6105228 | G22: =IF(E22=0,0,C22/E22) -> 202.03604 | H22: =IF(D22+E22=0,0,(B22+C22)/(D22+E22)) -> 289.1987796 | I22: 142373482.2 | J22: 988190.31 | K22: 281.4003148 | L22: -0.001783281732 | M22: 0.02771306358
A25: ="MÅLESTATISTIKK FOR BETONGFAGENE - 2. HALVÅR "&FORS!$A$14 -> MÅLESTATISTIKK FOR BETONGFAGENE - 2. HALVÅR 2015
B27: Målesum i kroner | D27: Timer | F27: ="Fortjeneste 2. halvår "&FORS!$A$14-0 -> Fortjeneste 2. halvår 2015 | I27: =" 2. halvår "&FORS!$A$14-1 -> 2. halvår 2014 | L27: Endringer i %
B28: Innmålt m/ | C28: Innmålt m/ | D28: Innmålt m/ | E28: Innmålt m/ | F28: Innmålt m/ | G28: Innmålt m/ | H28: Gjennom- | I28: Innmålt m/ | J28: Innmålt m/ | K28: Gjen.snitt | L28: Innmålt m/ | M28: Gjen.snitt
B29: overskudd | C29: underskudd | D29: overskudd | E29: underskudd | F29: overskudd | G29: underskudd | H29: snitt | I29: overskudd | J29: underskudd | K29: fortjeneste | L29: overskudd | M29: fortjeneste
A30: Agder | B30: 4355976 | C30: 83831 | D30: 15595 | E30: 478 | F30: =IF(D30=0,0,B30/D30) -> 279.318756 | G30: =IF(E30=0,0,C30/E30) -> 175.3786611 | H30: =IF(D30+E30=0,0,(B30+C30)/(D30+E30)) -> 276.2276489 | I30: 1997180 | K30: 269.3795522 | L30: =IF(I30=0,0,(B30-I30)/I30) -> 1.181063299 | M30: =IF(K30=0,0,(H30-K30)/K30) -> 0.02542173895
A31: Bergen | B31: 20581258.77 | D31: 73921.25 | F31: =IF(D31=0,0,B31/D31) -> 278.4214116 | G31: =IF(E31=0,0,C31/E31) -> 0 | H31: =IF(D31+E31=0,0,(B31+C31)/(D31+E31)) -> 278.4214116 | I31: 22246339 | K31: 285.1475462 | L31: =IF(I31=0,0,(B31-I31)/I31) -> -0.07484738185 | M31: =IF(K31=0,0,(H31-K31)/K31) -> -0.02358826047
A32: Drammen - Bærum | B32: =902749.82+432079.03+1684173.31+293420.7+48499.71 -> 3360922.57 | D32: =2529.6+1476+4334.6+914.5+160 -> 9414.7 | F32: =IF(D32=0,0,B32/D32) -> 356.9866878 | G32: =IF(E32=0,0,C32/E32) -> 0 | H32: =IF(D32+E32=0,0,(B32+C32)/(D32+E32)) -> 356.9866878 | I32: 1723423.11 | K32: 300.9557513 | L32: 0.9501436127 | M32: 0.1861766597
A33: Glåmdal | F33: 0 | G33: 0 | H33: 0 | K33: 0 | L33: 0 | M33: 0
A34: Haugesund | B34: 10138026 | D34: 39537.08 | F34: 256.4181776 | G34: 0 | H34: 256.4181776 | I34: 12609917 | K34: 253.5395643 | L34: -0.1960275393 | M34: 0.01135370443
A35: Hamar og Omegn | B35: 5237487.46 | D35: 19435.72 | F35: 269.4774086 | G35: 0 | H35: 269.4774086 | I35: 2420497.31 | K35: 235.1319149 | L35: 1.163806354 | M35: 0.1460690425
A36: Nordland | F36: 0 | G36: 0 | H36: 0 | K36: 0 | L36: 0 | M36: 0
A37: Sandnes | B37: 33858607.24 | D37: 107364.58 | F37: 315.3610552 | G37: 0 | H37: 315.3610552 | I37: 50325400.01 | K37: 314.8029262 | L37: -0.3272063961 | M37: 0.001772947183
A38: Stavanger | F38: 0 | G38: 0 | H38: 0 | K38: 0 | L38: 0 | M38: 0
A39: Telemark | B39: 484919 | D39: 1536.3 | F39: 315.6408254 | G39: 0 | H39: 315.6408254 | I39: 3298930 | K39: 252.3892952 | L39: -0.8530071872 | M39: 0.250610986
A40: Tromsø | F40: 0 | G40: 0 | H40: 0 | I40: 2958447 | K40: 262.9356714 | L40: -1 | M40: -1
A41: Trondheim | B41: 32689747.89 | D41: 112528.95 | F41: 290.5007813 | G41: 0 | H41: 290.5007813 | I41: 27557674.87 | K41: 282.6807709 | L41: 0.1862302623 | M41: 0.02766375073
A42: Vestfold | B42: 179975 | D42: 785 | F42: 229.2675159 | G42: 0 | H42: 229.2675159 | K42: 0 | L42: 0 | M42: 0
A43: Østfold | B43: 2590331.5 | D43: 9187.5 | F43: 281.9408435 | G43: 0 | H43: 281.9408435 | I43: 6747092 | K43: 275.3240839 | L43: -0.6160817875 | M43: 0.02403262201
A44: Oslo | B44: 7182385 | C44: 1482017 | D44: 23120 | E44: 7699 | F44: 310.6567907 | G44: 192.4947396 | H44: 281.1383238 | I44: 2285055 | K44: 271.2231454 | L44: 2.143200054 | M44: 0.03655727223
A45: Landet i alt | B45: =SUM(B30:B44) -> 120659636.4 | C45: =SUM(C30:C44) -> 1565848 | D45: =SUM(D30:D44) -> 412426.08 | E45: =SUM(E30:E44) -> 8177 | F45: =IF(D45=0,0,B45/D45) -> 292.5606364 | G45: =IF(E45=0,0,C45/E45) -> 191.494191 | H45: =IF(D45+E45=0,0,(B45+C45)/(D45+E45)) -> 290.5957903 | I45: 134169955.3 | J45: 0 | K45: 288.0477642 | L45: -0.1006955606 | M45: 0.008845845873
A48: ="MÅLESTATISTIKK FOR BETONGFAGENE - GJENNOMSNITT HELE ÅRET "&FORS!$A$14 -> MÅLESTATISTIKK FOR BETONGFAGENE - GJENNOMSNITT HELE ÅRET 2015
B50: Målesum i kroner | D50: Timer | F50: ="Fortjeneste hele "&FORS!$A$14-0 -> Fortjeneste hele 2015 | I50: =" Hele året "&FORS!$A$14-1 -> Hele året 2014 | L50: Endringer i %
B51: Innmålt m/ | C51: Innmålt m/ | D51: Innmålt m/ | E51: Innmålt m/ | F51: Innmålt m/ | G51: Innmålt m/ | H51: Gjennom- | I51: Innmålt m/ | J51: Innmålt m/ | K51: Gjen.snitt | L51: Innmålt m/ | M51: Gjen.snitt
B52: overskudd | C52: underskudd | D52: overskudd | E52: underskudd | F52: overskudd | G52: underskudd | H52: snitt | I52: overskudd | J52: underskudd | K52: fortjeneste | L52: overskudd | M52: fortjeneste
A53: Agder | B53: =B7+B30 -> 7655258 | C53: =C30 -> 83831 | D53: =D7+D30 -> 27813 | E53: =E7+E30 -> 478 | F53: =IF(D53=0,0,B53/D53) -> 275.2402833 | G53: =IF(E53=0,0,C53/E53) -> 175.3786611 | H53: =IF(D53+E53=0,0,(B53+C53)/(D53+E53)) -> 273.5530381 | I53: 7920114 | J53: 417010 | K53: 262.4212779 | L53: =IF(I53=0,0,(B53-I53)/I53) -> -0.03344093279 | M53: =IF(K53=0,0,(H53-K53)/K53) -> 0.04241942658
A54: Bergen | B54: =B8+B31 -> 57974717.87 | D54: =D8+D31 -> 206071.66 | F54: 281.3328037 | G54: =IF(E54=0,0,C54/E54) -> 0 | H54: 281.3328037 | I54: 30404952.06 | J54: 0 | K54: 284.188071 | L54: =IF(I54=0,0,(B54-I54)/I54) -> 0.9067524841 | M54: =IF(K54=0,0,(H54-K54)/K54) -> -0.01004710476
A55: Drammen - Bærum | F55: 0 | G55: 0 | H55: 0 | I55: 2436994.32 | J55: 0 | K55: 287.8396409 | L55: -1 | M55: -1
A56: Glåmdalen | F56: 0 | G56: 0 | H56: 0 | I56: 0 | J56: 0 | K56: 0 | L56: 0 | M56: 0
A57: Haugesund | B57: =B11+B34 -> 16927742 | D57: =D11+D34 -> 66214.2 | F57: 255.6512349 | G57: 0 | H57: 255.6512349 | I57: 25114029 | J57: 0 | K57: 256.0125415 | L57: -0.3259647028 | M57: -0.001411284569
A58: Hamar og Omegn | B58: =B12+B35 -> 8842141.22 | D58: =D12+D35 -> 32253.2 | F58: 274.1477193 | G58: 0 | H58: 274.1477193 | I58: 4008994.83 | J58: 571180.31 | K58: 223.0872408 | L58: 1.205575611 | M58: 0.2288812138
A59: Nordland | F59: 0 | G59: 0 | H59: 0 | I59: 0 | J59: 0 | K59: 0 | L59: 0 | M59: 0
A60: Sandnes | B60: =B14+B37 -> 74597381.6 | D60: =D14+D37 -> 234193.39 | F60: 318.5289798 | G60: 0 | H60: 318.5289798 | I60: 99468463.82 | J60: 0 | K60: 312.8867541 | L60: -0.2500398746 | M60: 0.0180328046
A61: Stavanger | F61: 0 | G61: 0 | H61: 0 | I61: 1014882 | J61: 0 | K61: 290.7971347 | L61: -1 | M61: -1
A62: Telemark | B62: =B16+B39 -> 1649929 | D62: =D16+D39 -> 5043.25 | F62: 327.1559015 | G62: 0 | H62: 327.1559015 | I62: 8841728.8 | J62: 0 | K62: 273.5319496 | L62: -0.8133929419 | M62: 0.196042736
A63: Tromsø | F63: 0 | G63: 0 | H63: 0 | I63: 8557295 | J63: 0 | K63: 257.6388784 | L63: -1 | M63: -1
A64: Trondheim | B64: =B18+B41 -> 56651732.35 | D64: =D18+D41 -> 196116.86 | F64: =IF(D64=0,0,B64/D64) -> 288.8672211 | G64: 0 | H64: 288.8672211 | I64: 54521538.18 | J64: 0 | K64: 287.1716893 | L64: 0.03907069098 | M64: 0.0059042442
A65: Vestfold | F65: 0 | G65: 0 | H65: 0 | I65: 0 | J65: 0 | K65: 0 | L65: 0 | M65: 0
A66: Østfold | B66: =B20+B43 -> 5831755 | C66: 2724456 | D66: 21373.5 | E66: 13485 | F66: 272.8497906 | G66: 202.03604 | H66: 245.455513 | I66: 11412244.5 | J66: 0 | K66: 268.7035895 | L66: -0.4889914074 | M66: -0.08651941163
A67: Oslo | B67: 24975385 | C67: 1482017 | D67: 84384 | E67: 7699 | F67: 295.9729925 | G67: 192.4947396 | H67: 287.3212428 | I67: 22842201 | J67: 0 | K67: 253.4277235 | L67: 0.09338784822 | M67: 0.1337403771
A68: Landet i alt | B68: =SUM(B53:B67) -> 255106042 | C68: =SUM(C53:C67) -> 4290304 | D68: =SUM(D53:D67) -> 873463.06 | E68: =SUM(E53:E67) -> 21662 | F68: =IF(D68=0,0,B68/D68) -> 292.0627714 | G68: =IF(E68=0,0,C68/E68) -> 198.0566891 | H68: =IF(D68+E68=0,0,(B68+C68)/(D68+E68)) -> 289.787827 | I68: 276543437.5 | J68: 988190.31 | K68: 284.5752173 | L68: -0.07751908945 | M68: 0.01831715965

Sheet TØMRERE
A2: ="MÅLESTATISTIKK FOR TØMRERE - 1. HALVÅR "&FORS!$A$14 -> MÅLESTATISTIKK FOR TØMRERE - 1. HALVÅR 2015
B4: Målesum i kroner | D4: Timer | F4: ="Fortjeneste 1. halvår "&FORS!$A$14-0 -> Fortjeneste 1. halvår 2015 | I4: =" 1. halvår "&FORS!$A$14-1 -> 1. halvår 2014 | L4: Endringer i %
B5: Innmålt m/ | C5: Innmålt m/ | D5: Innmålt m/ | E5: Innmålt m/ | F5: Innmålt m/ | G5: Innmålt m/ | H5: Gjennom- | I5: Innmålt m/ | J5: Innmålt m/ | K5: Gjen.snitt | L5: Innmålt m/ | M5: Gjen.snitt
B6: overskudd | C6: underskudd | D6: overskudd | E6: underskudd | F6: overskudd | G6: underskudd | H6: snitt | I6: overskudd | J6: underskudd | K6: fortjeneste | L6: overskudd | M6: fortjeneste
A7: Agder | B7: 7095854 | D7: 27164 | F7: =IF(D7=0,0,B7/D7) -> 261.2227212 | G7: =IF(E7=0,0,C7/E7) -> 0 | H7: =IF(D7+E7=0,0,(B7+C7)/(D7+E7)) -> 261.2227212 | I7: 4801424 | J7: 245971 | K7: 266.2549454 | L7: =IF(I7=0,0,(B7-I7)/I7) -> 0.4778644835 | M7: =IF(K7=0,0,(H7-K7)/K7) -> -0.01890002136
A8: Bergen | B8: 7962792.87 | D8: 32890.94 | F8: =IF(D8=0,0,B8/D8) -> 242.096847 | G8: =IF(E8=0,0,C8/E8) -> 0 | H8: =IF(D8+E8=0,0,(B8+C8)/(D8+E8)) -> 242.096847 | I8: 2728953.81 | K8: 242.594589 | L8: =IF(I8=0,0,(B8-I8)/I8) -> 1.917892139 | M8: =IF(K8=0,0,(H8-K8)/K8) -> -0.002051744073
A9: Drammen - Bærum | F9: 0 | G9: 0 | H9: 0 | K9: 0 | L9: 0 | M9: 0
A10: Glåmdal | B10: 1966967.18 | D10: 6746 | F10: 291.5753306 | G10: 0 | H10: 291.5753306 | I10: 2029751.5 | K10: 268.4501389 | L10: -0.03093202296 | M10: 0.08614334041
A11: Hamar og Omegn | B11: 3854583.54 | C11: 387453.05 | D11: 14005.13 | E11: 1892.47 | F11: 275.2265448 | G11: 204.7340513 | H11: 266.8350311 | I11: 3907961.82 | K11: 240.8286002 | L11: -0.01365885402 | M11: 0.1079873023
A12: Nordland | B12: 7370371 | C12: 675503 | D12: 22863 | E12: 3374 | F12: 322.3711236 | G12: 200.208358 | H12: 306.6613561 | I12: 14903879 | K12: 293.4181006 | L12: -0.5054729712 | M12: 0.04513441915
A13: Stavanger | B13: 1494422 | D13: 4847 | F13: 308.3189602 | G13: 0 | H13: 308.3189602 | I13: 858542 | K13: 290.047973 | L13: 0.7406510107 | M13: 0.06299298361
A14: Telemark | B14: 9273831 | C14: 424120 | D14: 36635.43 | E14: 2209 | F14: 253.1383145 | G14: 191.9963785 | H14: 249.6613028 | I14: 26086871 | J14: 504992 | K14: 250.2184718 | L14: -0.6445019796 | M14: -0.002226730168
A15: Trondheim | B15: 70962050 | C15: 2099348 | D15: 247977 | E15: 10496 | F15: =IF(D15=0,0,B15/D15) -> 286.1638378 | G15: =IF(E15=0,0,C15/E15) -> 200.0141006 | H15: =IF(D15+E15=0,0,(B15+C15)/(D15+E15)) -> 282.6654931 | I15: 49950988 | J15: 893493 | K15: 247.2054775 | L15: 0.4206335618 | M15: 0.1434434865
A16: Tromsø | F16: 0 | G16: 0 | H16: 0 | I16: 1730678 | K16: 247.6890931 | L16: -1 | M16: -1
A17: Vestfold | B17: 5105559 | C17: 435336 | D17: 21310.5 | E17: 3100 | F17: 239.5795031 | G17: 140.4309677 | H17: 226.9881813 | I17: 4028383 | K17: 219.9019051 | L17: 0.2673966204 | M17: 0.03222471486
A18: Østfold | B18: 10848517 | C18: 1077858 | D18: 37206.5 | E18: 5344.5 | F18: 291.5758537 | G18: 201.6761156 | H18: 280.2842471 | I18: 6282869 | K18: 245.6116573 | L18: 0.7266820301 | M18: 0.1411683395
A19: Oslo | B19: 38108787.01 | D19: 130990.6 | F19: 290.9276468 | G19: 0 | H19: 290.9276468 | I19: 38445770.2 | K19: 305.4689341 | L19: -0.008765156433 | M19: -0.04760316245
A20: Landet i alt | B20: =SUM(B7:B19) -> 164043734.6 | C20: =SUM(C7:C19) -> 5099618.05 | D20: =SUM(D7:D19) -> 582636.1 | E20: =SUM(E7:E19) -> 26415.97 | F20: =IF(D20=0,0,B20/D20) -> 281.5543606 | G20: =IF(E20=0,0,C20/E20) -> 193.0505694 | H20: =IF(D20+E20=0,0,(B20+C20)/(D20+E20)) -> 277.7157504 | I20: 155756071.3 | J20: 1644456 | K20: 263.8979129 | L20: 0.05320924699 | M20: 0.05236054099
L21: 0 | M21: 0
L22: 0 | M22: 0
A23: ="MÅLESTATISTIKK FOR TØMRERE - 2. HALVÅR "&FORS!$A$14 -> MÅLESTATISTIKK FOR TØMRERE - 2. HALVÅR 2015
B25: Målesum i kroner | D25: Timer | F25: ="Fortjeneste 2. halvår "&FORS!$A$14-0 -> Fortjeneste 2. halvår 2015 | I25: =" 2. halvår "&FORS!$A$14-1 -> 2. halvår 2014 | L25: Endringer i %
B26: Innmålt m/ | C26: Innmålt m/ | D26: Innmålt m/ | E26: Innmålt m/ | F26: Innmålt m/ | G26: Innmålt m/ | H26: Gjennom- | I26: Innmålt m/ | J26: Innmålt m/ | K26: Gjen.snitt | L26: Innmålt m/ | M26: Gjen.snitt
B27: overskudd | C27: underskudd | D27: overskudd | E27: underskudd | F27: overskudd | G27: underskudd | H27: snitt | I27: overskudd | J27: underskudd | K27: fortjeneste | L27: overskudd | M27: fortjeneste
A28: Agder | B28: 5990442 | C28: 405232 | D28: 22167 | E28: 1991 | F28: =IF(D28=0,0,B28/D28) -> 270.24144 | G28: =IF(E28=0,0,C28/E28) -> 203.5318935 | H28: =IF(D28+E28=0,0,(B28+C28)/(D28+E28)) -> 264.7435218 | I28: 10801098 | K28: 265.2854722 | L28: =IF(I28=0,0,(B28-I28)/I28) -> -0.4453858302 | M28: =IF(K28=0,0,(H28-K28)/K28) -> -0.00204289502
A29: Bergen | B29: 2803231.02 | D29: 11095.05 | F29: =IF(D29=0,0,B29/D29) -> 252.6560061 | G29: 0 | H29: =IF(D29+E29=0,0,(B29+C29)/(D29+E29)) -> 252.6560061 | I29: 1459051 | K29: 248.7873957 | L29: =IF(I29=0,0,(B29-I29)/I29) -> 0.9212700721 | M29: =IF(K29=0,0,(H29-K29)/K29) -> 0.01554986489
A30: Drammen - Bærum | B30: =744498.59+83577.57 -> 828076.16 | D30: =2008.38+189.2 -> 2197.58 | F30: =IF(D30=0,0,B30/D30) -> 376.8127486 | G30: 0 | H30: =IF(D30+E30=0,0,(B30+C30)/(D30+E30)) -> 376.8127486 | I30: 1339776.65 | K30: 229.4629244 | L30: -0.381929697 | M30: 0.6421509031
A31: Glåmdal | F31: 0 | G31: 0 | H31: 0 | I31: 1750464.09 | K31: 244.631974 | L31: -1 | M31: -1
A32: Hamar og Omegn | B32: 5061732.59 | D32: 18427.53 | F32: 274.6831827 | G32: 0 | H32: 274.6831827 | I32: 3805328.68 | K32: 278.4626589 | L32: 0.3301696163 | M32: -0.01357264977
A33: Nordland | B33: 485125 | D33: 2001 | F33: 242.4412794 | G33: 0 | H33: 242.4412794 | I33: 4876365 | K33: 316.0314323 | L33: -0.9005150353 | M33: -0.2328570686
A34: Stavanger | F34: 0 | G34: 0 | H34: 0 | I34: 1298351 | K34: 323.4556552 | L34: -1 | M34: -1
A35: Telemark | B35: 9681769 | D35: 40442.55 | F35: =IF(D35=0,0,B35/D35) -> 239.3956118 | G35: =IF(E35=0,0,C35/E35) -> 0 | H35: =IF(D35+E35=0,0,(B35+C35)/(D35+E35)) -> 239.3956118 | I35: 7961008 | J35: 590570 | K35: 255.511929 | L35: 0.2161486334 | M35: -0.06307461758
A36: Trondheim | B36: 69545888 | C36: 5171885 | D36: 254376 | E36: 28262 | F36: 273.3979935 | G36: 182.9978416 | H36: 264.3585541 | I36: 85406499 | J36: 4641226 | K36: 277.3746084 | L36: -0.1857073078 | M36: -0.04692590443
A37: Tromsø | F37: 0 | G37: 0 | H37: 0 | K37: 0 | L37: 0 | M37: 0
A38: Vestfold | B38: 2476641 | C38: 1644948 | D38: 9589.5 | E38: 8055 | F38: 258.2659158 | G38: 204.2145251 | H38: 233.5905806 | K38: 0 | L38: 0 | M38: 0
A39: Østfold | B39: 3383309.49 | D39: 11879.5 | F39: 284.8023477 | G39: 0 | H39: 284.8023477 | I39: 3086076 | J39: 872161 | K39: 276.7707583 | L39: 0.09631437787 | M39: 0.02901892338
A40: Oslo | B40: 8924526.85 | D40: 27905.9 | F40: =IF(D40=0,0,B40/D40) -> 319.8078847 | G40: =IF(E40=0,0,C40/E40) -> 0 | H40: =IF(D40+E40=0,0,(B40+C40)/(D40+E40)) -> 319.8078847 | I40: 34676104.7 | K40: 303.8668926 | L40: -0.7426317942 | M40: 0.05246044411
A41: Landet i alt | B41: =SUM(B28:B40) -> 109180741.1 | C41: =SUM(C28:C40) -> 7222065 | D41: =SUM(D28:D40) -> 400081.61 | E41: =SUM(E28:E40) -> 38308 | F41: =IF(D41=0,0,B41/D41) -> 272.8961751 | G41: =IF(E41=0,0,C41/E41) -> 188.5262869 | H41: =IF(D41+E41=0,0,(B41+C41)/(D41+E41)) -> 265.5236426 | I41: 156460122.1 | J41: 6103957 | K41: 280.6640174 | L41: -0.3021816701 | M41: -0.05394483763
A44: ="MÅLESTATISTIKK FOR TØMRERE - GJENNOMSNITT HELE ÅRET "&FORS!$A$14 -> MÅLESTATISTIKK FOR TØMRERE - GJENNOMSNITT HELE ÅRET 2015
B46: Målesum i kroner | D46: Timer | F46: ="Fortjeneste hele "&FORS!$A$14-0 -> Fortjeneste hele 2015 | I46: =" Hele året "&FORS!$A$14-1 -> Hele året 2014 | L46: Endringer i %
B47: Innmålt m/ | C47: Innmålt m/ | D47: Innmålt m/ | E47: Innmålt m/ | F47: Innmålt m/ | G47: Innmålt m/ | H47: Gjennom- | I47: Innmålt m/ | J47: Innmålt m/ | K47: Gjen.snitt | L47: Innmålt m/ | M47: Gjen.snitt
B48: overskudd | C48: underskudd | D48: overskudd | E48: underskudd | F48: overskudd | G48: underskudd | H48: snitt | I48: overskudd | J48: underskudd | K48: fortjeneste | L48: overskudd | M48: fortjeneste
A49: Vest-Agder | B49: =B7+B28 -> 13086296 | C49: =C7+C28 -> 405232 | D49: 49331 | E49: 1991 | F49: =IF(D49=0,0,B49/D49) -> 265.2753036 | G49: =IF(E49=0,0,C49/E49) -> 203.5318935 | H49: =IF(D49+E49=0,0,(B49+C49)/(D49+E49)) -> 262.8800125 | I49: 15602522 | J49: 245971 | K49: 265.5934609 | L49: =IF(I49=0,0,(B49-I49)/I49) -> -0.1612704664 | M49: =IF(K49=0,0,(H49-K49)/K49) -> -0.0102165484
A50: Bergen | B50: =B8+B29 -> 10766023.89 | C50: 0 | D50: 43985.99 | E50: 0 | F50: =IF(D50=0,0,B50/D50) -> 244.760295 | G50: =IF(E50=0,0,C50/E50) -> 0 | H50: =IF(D50+E50=0,0,(B50+C50)/(D50+E50)) -> 244.760295 | I50: 4188004.81 | J50: 0 | K50: 244.7167886 | L50: =IF(I50=0,0,(B50-I50)/I50) -> 1.57068088 | M50: =IF(K50=0,0,(H50-K50)/K50) -> 0.0001777829882
A51: Drammen - Bærum | B51: =B9+B30 -> 828076.16 | C51: 0 | D51: 2197.58 | E51: 0 | F51: 376.8127486 | G51: 0 | H51: 376.8127486 | I51: 1339776.65 | J51: 0 | K51: 229.4629244 | L51: -0.381929697 | M51: =IF(K51=0,0,(H51-K51)/K51) -> 0.6421509031
A52: Glåmdal | B52: =B10+B31 -> 1966967.18 | C52: 0 | D52: 6746 | E52: 0 | F52: 291.5753306 | G52: 0 | H52: =IF(D52+E52=0,0,(B52+C52)/(D52+E52)) -> 291.5753306 | I52: 3780215.59 | J52: 0 | K52: 256.8692006 | L52: -0.479667989 | M52: 0.1351120723
A53: Hamar og Omegn | B53: =B11+B32 -> 8916316.13 | C53: 387453.05 | D53: 32432.66 | E53: 1892.47 | F53: 274.9178183 | G53: 204.7340513 | H53: 271.0483305 | I53: 7713290.5 | J53: 0 | K53: 258.0330978 | L53: 0.1559678882 | M53: 0.05044016761
A54: Nordland | B54: =B12+B33 -> 7855496 | C54: 675503 | D54: 24864 | E54: 3374 | F54: 315.9385457 | G54: 200.208358 | H54: 302.1105957 | I54: 19780244 | J54: 0 | K54: 298.6869413 | L54: -0.6028615218 | M54: 0.01146235033
A55: Stavanger | B55: =B13+B34 -> 1494422 | C55: 0 | D55: 4847 | E55: 0 | F55: 308.3189602 | G55: 0 | H55: 308.3189602 | I55: 2156893 | J55: 0 | K55: 309.276312 | L55: -0.3071413371 | M55: -0.003095458001
A56: Telemark | B56: =B14+B35 -> 18955600 | C56: 424120 | D56: 77077.98 | E56: 2209 | F56: 245.9275658 | G56: 191.9963785 | H56: 244.4249989 | I56: 34047879 | J56: 1095562 | K56: 251.4862534 | L56: -0.4432663485 | M56: -0.02807809348
A57: Trondheim | B57: =B15+B36 -> 140507938 | C57: 7271233 | D57: 502353 | E57: 38758 | F57: 279.6996096 | G57: 187.605991 | H57: 273.1032468 | I57: 135357487 | J57: 5534719 | K57: 265.673944 | L57: 0.03805072859 | M57: 0.02796398733
A58: Tromsø | B58: =B16+B37 -> 0 | C58: 0 | D58: 0 | E58: 0 | F58: 0 | G58: 0 | H58: 0 | I58: 1730678 | J58: 0 | K58: 247.6890931 | L58: -1 | M58: -1
A59: Vestfold | B59: =B17+B38 -> 7582200 | C59: =C17+C38 -> 2080284 | D59: 30900 | E59: 11155 | F59: 245.3786408 | G59: 186.4889287 | H59: 229.7582689 | I59: 4028383 | J59: 0 | K59: 219.9019051 | L59: 0.882194419 | M59: 0.044821639
A60: Østfold | B60: =B18+B39 -> 14231826.49 | C60: 1077858 | D60: 49086 | E60: 5344.5 | F60: 289.9365703 | G60: 201.6761156 | H60: 281.2703262 | I60: 9368945 | J60: 872161 | K60: 256.7851662 | L60: 0.5190425912 | M60: 0.09535270403
A61: Oslo | B61: =B19+B40 -> 47033313.86 | C61: 0 | D61: 158896.5 | E61: 0 | F61: 295.9996844 | G61: 0 | H61: 295.9996844 | I61: 73121874.9 | J61: 0 | K61: 304.7071078 | L61: -0.3567818943 | M61: -0.02857637098
A62: Landet i alt | B62: =B20+B41 -> 273224475.7 | C62: 12321683.05 | D62: 982717.71 | E62: =E20+E41 -> 64723.97 | F62: 278.0294615 | G62: 190.3727947 | H62: =IF(D62+E62=0,0,(B62+C62)/(D62+E62)) -> 272.6129428 | I62: 312216193.5 | J62: 7748413 | K62: 272.1580894 | L62: -0.1248869167 | M62: 0.001671283667

Sheet MALERE
A2: ="MÅLESTATISTIKK FOR MALERE - 1. HALVÅR "&FORS!$A$14 -> MÅLESTATISTIKK FOR MALERE - 1. HALVÅR 2015
B4: Målesum i kroner | D4: Timer | F4: ="Fortjeneste 1. halvår "&FORS!$A$14-0 -> Fortjeneste 1. halvår 2015 | I4: =" 1. halvår "&FORS!$A$14-1 -> 1. halvår 2014 | L4: Endringer i %
B5: Innmålt m/ | C5: Innmålt m/ | D5: Innmålt m/ | E5: Innmålt m/ | F5: Innmålt m/ | G5: Innmålt m/ | H5: Gjennom- | I5: Innmålt m/ | J5: Innmålt m/ | K5: Gjen.snitt | L5: Innmålt m/ | M5: Gjen.snitt
B6: overskudd | C6: underskudd | D6: overskudd | E6: underskudd | F6: overskudd | G6: underskudd | H6: snitt | I6: overskudd | J6: underskudd | K6: fortjeneste | L6: overskudd | M6: fortjeneste
A7: Agder | F7: =IF(D7=0,0,B7/D7) -> 0 | G7: =IF(E7=0,0,C7/E7) -> 0 | H7: =IF(D7+E7=0,0,(B7+C7)/(D7+E7)) -> 0 | K7: 0 | L7: =IF(I7=0,0,(B7-I7)/I7) -> 0 | M7: =IF(K7=0,0,(H7-K7)/K7) -> 0
A8: Bergen | B8: 2190258.28 | D8: 9192.78 | F8: =IF(D8=0,0,B8/D8) -> 238.2585333 | G8: =IF(E8=0,0,C8/E8) -> 0 | H8: =IF(D8+E8=0,0,(B8+C8)/(D8+E8)) -> 238.2585333 | I8: 2041004.18 | K8: 230.6245472 | L8: =IF(I8=0,0,(B8-I8)/I8) -> 0.07312777772 | M8: =IF(K8=0,0,(H8-K8)/K8) -> 0.03310135998
A9: Glåmdal | F9: 0 | G9: 0 | H9: 0 | K9: 0 | L9: 0 | M9: 0
A10: Hamar og Omegn | B10: 1131851 | C10: 312564 | D10: 4719 | E10: 1966 | F10: 239.8497563 | G10: 158.9847406 | H10: 216.0680628 | I10: 1578143 | J10: 212200 | K10: 223.7369408 | L10: -0.2827956655 | M10: -0.03427631535
A11: Nordland | F11: 0 | G11: 0 | H11: 0 | K11: 0 | L11: 0 | M11: 0
A12: Sandnes | F12: 0 | G12: 0 | H12: 0 | K12: 0 | L12: 0 | M12: 0
A13: Telemark | B13: 184665.2 | D13: 562 | F13: 328.5857651 | G13: 0 | H13: 328.5857651 | I13: 83177 | K13: 292.3620387 | L13: 1.220147397 | M13: 0.123900239
A14: Tromsø | F14: 0 | G14: 0 | H14: 0 | K14: 0 | L14: 0 | M14: 0
A15: Trondheim | B15: 13944578 | C15: 575160 | D15: 53969.42 | E15: 3562.37 | F15: 258.3792451 | G15: 161.4543127 | H15: 252.3776507 | I15: 16692982 | J15: 1155287 | K15: 233.7629532 | L15: -0.1646442799 | M15: 0.07963065691
A16: Vestfold | B16: 552798 | D16: 1654.5 | F16: 334.1178604 | G16: 0 | H16: 334.1178604 | I16: 150243 | K16: 359.0035842 | L16: 2.679359438 | M16: -0.06931887296
A17: Oslo | B17: 2192426 | D17: 8179 | F17: 268.055508 | G17: 0 | H17: 268.055508 | I17: 2105399 | K17: 279.8393057 | L17: 0.04133515785 | M17: -0.04210915838
A18: Landet i alt | B18: =SUM(B7:B17) -> 20196576.48 | C18: =SUM(C7:C17) -> 887724 | D18: =SUM(D7:D17) -> 78276.7 | E18: =SUM(E7:E17) -> 5528.37 | F18: =IF(D18=0,0,B18/D18) -> 258.0151754 | G18: =IF(E18=0,0,C18/E18) -> 160.576083 | H18: =IF(D18+E18=0,0,(B18+C18)/(D18+E18)) -> 251.5874097 | I18: 22650948.18 | J18: 1367487 | K18: 236.7969711 | L18: -0.1083562454 | M18: 0.06246042122
A21: ="MÅLESTATISTIKK FOR MALERE - 2. HALVÅR "&FORS!$A$14 -> MÅLESTATISTIKK FOR MALERE - 2. HALVÅR 2015
B23: Målesum i kroner | D23: Timer | F23: ="Fortjeneste 2. halvår "&FORS!$A$14-0 -> Fortjeneste 2. halvår 2015 | I23: =" 2. halvår "&FORS!$A$14-1 -> 2. halvår 2014 | L23: Endringer i %
B24: Innmålt m/ | C24: Innmålt m/ | D24: Innmålt m/ | E24: Innmålt m/ | F24: Innmålt m/ | G24: Innmålt m/ | H24: Gjennom- | I24: Innmålt m/ | J24: Innmålt m/ | K24: Gjen.snitt | L24: Innmålt m/ | M24: Gjen.snitt
B25: overskudd | C25: underskudd | D25: overskudd | E25: underskudd | F25: overskudd | G25: underskudd | H25: snitt | I25: overskudd | J25: underskudd | K25: fortjeneste | L25: overskudd | M25: fortjeneste
A26: Agder | F26: =IF(D26=0,0,B26/D26) -> 0 | G26: =IF(E26=0,0,C26/E26) -> 0 | H26: =IF(D26+E26=0,0,(B26+C26)/(D26+E26)) -> 0 | K26: 0 | L26: =IF(I26=0,0,(B26-I26)/I26) -> 0 | M26: =IF(K26=0,0,(H26-K26)/K26) -> 0
A27: Bergen | B27: 2828479.11 | D27: 12739.52 | F27: =IF(D27=0,0,B27/D27) -> 222.0239938 | G27: =IF(E27=0,0,C27/E27) -> 0 | H27: =IF(D27+E27=0,0,(B27+C27)/(D27+E27)) -> 222.0239938 | I27: 3456691 | K27: 215.711531 | L27: =IF(I27=0,0,(B27-I27)/I27) -> -0.1817379367 | M27: =IF(K27=0,0,(H27-K27)/K27) -> 0.02926344637
A28: Glåmdal | F28: 0 | G28: 0 | H28: 0 | K28: 0 | L28: 0 | M28: 0
A29: Hamar og Omegn | B29: 2383637 | C29: 272041 | D29: 9886 | E29: 1516 | F29: 241.1123811 | G29: 179.4465699 | H29: 232.9133485 | I29: 1770744 | J29: 578631 | K29: 211.6363391 | L29: 0.3461217432 | M29: 0.1005357093
A30: Nordland | F30: 0 | G30: 0 | H30: 0 | K30: 0 | L30: 0 | M30: 0
A31: Sandnes | F31: 0 | G31: 0 | H31: 0 | K31: 0 | L31: 0 | M31: 0
A32: Telemark | B32: 265061.8 | D32: 963 | F32: 275.2458982 | G32: 0 | H32: 275.2458982 | I32: 292705 | K32: 336.8568239 | L32: -0.09444047761 | M32: -0.1828994436
A33: Tromsø | F33: 0 | G33: 0 | H33: 0 | K33: 0 | L33: 0 | M33: 0
A34: Trondheim | B34: 22479509 | C34: 3033398 | D34: 84633.8 | E34: 16195.55 | F34: =IF(D34=0,0,B34/D34) -> 265.6091183 | G34: 187.2982393 | H34: 253.030561 | I34: 18656349 | J34: 3061305 | K34: 250.1601567 | L34: 0.2049254117 | M34: 0.01147426683
A35: Vestfold | F35: =IF(D35=0,0,B35/D35) -> 0 | G35: =IF(E35=0,0,C35/E35) -> 0 | H35: =IF(D35+E35=0,0,(B35+C35)/(D35+E35)) -> 0 | I35: 688462 | K35: 266.3295938 | L35: -1 | M35: -1
A36: Oslo* | B36: 2619437 | D36: 9069 | F36: 288.8341603 | G36: 0 | H36: 288.8341603 | I36: 2476921 | K36: 300.0873516 | L36: 0.05753756377 | M36: -0.03749971867
A37: Landet i alt | B37: =SUM(B26:B36) -> 30576123.91 | C37: =SUM(C26:C36) -> 3305439 | D37: =SUM(D26:D36) -> 117291.32 | E37: =SUM(E26:E36) -> 17711.55 | F37: =IF(D37=0,0,B37/D37) -> 260.6853083 | G37: =IF(E37=0,0,C37/E37) -> 186.6261846 | H37: =IF(D37+E37=0,0,(B37+C37)/(D37+E37)) -> 250.9692047 | I37: 27341872 | J37: 3639936 | K37: 246.5751728 | L37: 0.118289337 | M37: 0.01782025246
A38: * inklusive Buskerud
A40: ="MÅLESTATISTIKK FOR MALERE - GJENNOMSNITT HELE ÅRET "&FORS!$A$14 -> MÅLESTATISTIKK FOR MALERE - GJENNOMSNITT HELE ÅRET 2015
B42: Målesum i kroner | D42: Timer | F42: ="Fortjeneste hele "&FORS!$A$14-0 -> Fortjeneste hele 2015 | I42: =" Hele året "&FORS!$A$14-1 -> Hele året 2014 | L42: Endringer i %
B43: Innmålt m/ | C43: Innmålt m/ | D43: Innmålt m/ | E43: Innmålt m/ | F43: Innmålt m/ | G43: Innmålt m/ | H43: Gjennom- | I43: Innmålt m/ | J43: Innmålt m/ | K43: Gjen.snitt | L43: Innmålt m/ | M43: Gjen.snitt
B44: overskudd | C44: underskudd | D44: overskudd | E44: underskudd | F44: overskudd | G44: underskudd | H44: snitt | I44: overskudd | J44: underskudd | K44: fortjeneste | L44: overskudd | M44: fortjeneste
A45: Agder | B45: =B7+B26 -> 0 | C45: =C7+C26 -> 0 | D45: 0 | E45: 0 | G45: 0 | I45: 0 | J45: 0 | K45: 0 | L45: =IF(I45=0,0,(B45-I45)/I45) -> 0 | M45: =IF(K45=0,0,(H45-K45)/K45) -> 0
A46: Bergen | B46: =B8+B27 -> 5018737.39 | C46: 0 | D46: 21932.3 | E46: 0 | F46: =IF(D46=0,0,B46/D46) -> 228.8285948 | G46: =IF(E46=0,0,C46/E46) -> 0 | H46: =IF(D46+E46=0,0,(B46+C46)/(D46+E46)) -> 228.8285948 | I46: 5497695.18 | J46: 0 | K46: 221.0173141 | L46: =IF(I46=0,0,(B46-I46)/I46) -> -0.08711974279 | M46: =IF(K46=0,0,(H46-K46)/K46) -> 0.03534239264
A47: Glåmdal | B47: 0 | C47: 0 | D47: 0 | E47: 0 | F47: =IF(D47=0,0,B47/D47) -> 0 | G47: =IF(E47=0,0,C47/E47) -> 0 | H47: =IF(D47+E47=0,0,(B47+C47)/(D47+E47)) -> 0 | I47: 0 | J47: 0 | K47: 0 | L47: 0 | M47: 0
A48: Hamar og Omegn | B48: 3515488 | C48: 584605 | D48: 14605 | E48: 3482 | F48: 240.7044163 | G48: 167.893452 | H48: 226.6872892 | I48: 3348887 | J48: 790831 | K48: 216.7051248 | L48: 0.04974817006 | M48: 0.04606335162
A49: Nordland | B49: 0 | C49: 0 | D49: 0 | E49: 0 | F49: 0 | G49: 0 | H49: 0 | I49: 0 | J49: 0 | K49: 0 | L49: 0 | M49: 0
A50: Sandnes | B50: 0 | C50: 0 | D50: 0 | E50: 0 | F50: 0 | G50: 0 | H50: 0 | I50: 0 | J50: 0 | K50: 0 | L50: 0 | M50: 0
A51: Telemark | B51: 449727 | C51: 0 | D51: 1525 | E51: 0 | F51: 294.9029508 | G51: 0 | H51: 294.9029508 | I51: 375882 | J51: 0 | K51: 325.8819348 | L51: 0.1964579309 | M51: -0.09506198604
A52: Tromsø | B52: 0 | C52: 0 | D52: 0 | E52: 0 | F52: 0 | G52: 0 | H52: 0 | I52: 0 | J52: 0 | K52: 0 | L52: 0 | M52: 0
A53: Trondheim | B53: 36424087 | C53: 3608558 | D53: 138603.22 | E53: 19757.92 | F53: 262.7939452 | G53: 182.6385571 | H53: 252.7933621 | I53: 35349331 | J53: 4216592 | K53: 242.487286 | L53: 0.03040385687 | M53: 0.04250151088
A54: Vestfold | B54: 552798 | C54: 0 | D54: 1654.5 | E54: 0 | F54: 334.1178604 | G54: 0 | H54: 334.1178604 | I54: 838705 | J54: 0 | K54: 279.2425504 | L54: -0.3408910165 | M54: 0.1965148576
A55: Oslo* | B55: 4811863 | C55: 0 | D55: 17248 | E55: 0 | F55: 278.9809253 | G55: 0 | H55: 278.9809253 | I55: 4582320 | J55: 0 | K55: 290.4320049 | L55: 0.05009318424 | M55: -0.03942774677
A56: Landet i alt | B56: =SUM(B45:B55) -> 50772700.39 | C56: =C18+C37 -> 4193163 | D56: 195568.02 | E56: 23239.92 | F56: =IF(B56=0,0,B56/D56) -> 259.6165794 | G56: =IF(E56=0,0,C56/E56) -> 180.4293216 | H56: =IF(D56+C56=0,0,(B56+C56)/(D56+E56)) -> 251.2059818 | I56: 49992820.18 | J56: 5007423 | K56: 242.2074957 | L56: 0.01559984428 | M56: 0.03715197199
A57: * inklusive Buskerud

Sheet RØRLEGGERE
A2: ="MÅLESTATISTIKK FOR RØRLEGGERE - 1. HALVÅR "&FORS!$A$14 -> MÅLESTATISTIKK FOR RØRLEGGERE - 1. HALVÅR 2015
B4: Målesum i kroner | D4: Timer | F4: ="Fortjeneste 1. halvår "&FORS!$A$14-0 -> Fortjeneste 1. halvår 2015 | I4: =" 1. halvår "&FORS!$A$14-1 -> 1. halvår 2014 | L4: Endringer i %
B5: Innmålt m/ | C5: Innmålt m/ | D5: Innmålt m/ | E5: Innmålt m/ | F5: Innmålt m/ | G5: Innmålt m/ | H5: Gjennom- | I5: Innmålt m/ | J5: Innmålt m/ | K5: Gjen.snitt | L5: Innmålt m/ | M5: Gjen.snitt
B6: overskudd | C6: underskudd | D6: overskudd | E6: underskudd | F6: overskudd | G6: underskudd | H6: snitt | I6: overskudd | J6: underskudd | K6: fortjeneste | L6: overskudd | M6: fortjeneste
A7: Bergen | F7: =IF(D7=0,0,B7/D7) -> 0 | G7: 0 | H7: =IF(D7+E7=0,0,(B7+C7)/(D7+E7)) -> 0 | K7: 0 | L7: =IF(I7=0,0,(B7-I7)/I7) -> 0 | M7: =IF(K7=0,0,(H7-K7)/K7) -> 0
A8: Nordland | F8: 0 | G8: 0 | H8: 0 | K8: 0 | L8: =IF(I8=0,0,(B8-I8)/I8) -> 0 | M8: =IF(K8=0,0,(H8-K8)/K8) -> 0
A9: Stavanger | F9: 0 | G9: 0 | H9: 0 | K9: 0 | L9: 0 | M9: 0
A10: Tromsø | F10: 0 | G10: 0 | H10: 0 | K10: 0 | L10: 0 | M10: 0
A11: Trondheim | B11: 12502745.04 | C11: 1684944.41 | D11: 47441 | E11: 10016 | F11: 263.5430332 | G11: 168.2252806 | H11: 246.9270837 | I11: 3853253 | K11: 271.9437799 | L11: 2.244724663 | M11: -0.09199216155
A12: Oslo | F12: 0 | G12: 0 | H12: 0 | I12: 11955493.79 | K12: 266.1270989 | L12: -1 | M12: -1
A13: Landet i alt | B13: =SUM(B7:B12) -> 12502745.04 | C13: =SUM(C7:C12) -> 1684944.41 | D13: =SUM(D7:D12) -> 47441 | E13: =SUM(E7:E12) -> 10016 | F13: 263.5430332 | G13: 168.2252806 | H13: 246.9270837 | I13: 15808746.79 | J13: 0 | K13: 267.5218136 | L13: -0.2091248468 | M13: -0.07698336681
A16: ="MÅLESTATISTIKK FOR RØRLEGGERE - 2. HALVÅR "&FORS!$A$14 -> MÅLESTATISTIKK FOR RØRLEGGERE - 2. HALVÅR 2015
B18: Målesum i kroner | D18: Timer | F18: ="Fortjeneste 2. halvår "&FORS!$A$14-0 -> Fortjeneste 2. halvår 2015 | I18: =" 2. halvår "&FORS!$A$14-1 -> 2. halvår 2014 | L18: Endringer i %
B19: Innmålt m/ | C19: Innmålt m/ | D19: Innmålt m/ | E19: Innmålt m/ | F19: Innmålt m/ | G19: Innmålt m/ | H19: Gjennom- | I19: Innmålt m/ | J19: Innmålt m/ | K19: Gjen.snitt | L19: Innmålt m/ | M19: Gjen.snitt
B20: overskudd | C20: underskudd | D20: overskudd | E20: underskudd | F20: overskudd | G20: underskudd | H20: snitt | I20: overskudd | J20: underskudd | K20: fortjeneste | L20: overskudd | M20: fortjeneste
A21: Bergen | F21: =IF(D21=0,0,B21/D21) -> 0 | G21: 0 | H21: =IF(D21+E21=0,0,(B21+C21)/(D21+E21)) -> 0 | I21: 1158463 | K21: 260.1533797 | L21: =IF(I21=0,0,(B21-I21)/I21) -> -1 | M21: =IF(K21=0,0,(H21-K21)/K21) -> -1
A22: Nordland | F22: =IF(D22=0,0,B22/D22) -> 0 | G22: =IF(E22=0,0,C22/E22) -> 0 | H22: =IF(D22+E22=0,0,(B22+C22)/(D22+E22)) -> 0 | I22: 289644 | K22: 406.2328191 | L22: =IF(I22=0,0,(B22-I22)/I22) -> -1 | M22: =IF(K22=0,0,(H22-K22)/K22) -> -1
A23: Stavanger | F23: 0 | G23: 0 | H23: 0 | K23: 0 | L23: 0 | M23: 0
A24: Tromsø | F24: 0 | G24: 0 | H24: 0 | K24: 0 | L24: 0 | M24: 0
A25: Trondheim | B25: 13370610.51 | C25: 2437110.27 | D25: 50693.4 | E25: 16593 | F25: =IF(D25=0,0,B25/D25) -> 263.7544633 | G25: =IF(E25=0,0,C25/E25) -> 146.8758073 | H25: 234.9318849 | I25: 17329000 | K25: 250.8250347 | L25: -0.2284257309 | M25: -0.06336349104
A26: Oslo | B26: 21881534 | C26: 4353473 | D26: 82489 | E26: 22980 | F26: =B26/D26 -> 265.266084 | G26: =IF(E26=0,0,C26/E26) -> 189.4461706 | H26: =IF(D26+E26=0,0,(B26+C26)/(D26+E26)) -> 248.7461434 | I26: 28162116 | K26: 335.4969354 | L26: =IF(I26=0,0,(#REF!-I26)/I26) ->  | M26: -0.258574022
A27: Landet i alt | B27: =SUM(B21:B26) -> 35252144.51 | C27: =SUM(C21:C26) -> 6790583.27 | D27: =SUM(D21:D26) -> 133182.4 | E27: =SUM(E21:E26) -> 39573 | F27: 264.6907137 | G27: 171.596373 | H27: 243.3656359 | I27: 46939223 | J27: 0 | K27: 296.7165501 | L27: -0.2489832115 | M27: -0.1798043087
A30: ="MÅLESTATISTIKK FOR RØRLEGGERE - GJENNOMSNITT HELE ÅRET "&FORS!$A$14 -> MÅLESTATISTIKK FOR RØRLEGGERE - GJENNOMSNITT HELE ÅRET 2015
B32: Målesum i kroner | D32: Timer | F32: ="Fortjeneste hele "&FORS!$A$14-0 -> Fortjeneste hele 2015 | I32: =" Hele året "&FORS!$A$14-1 -> Hele året 2014 | L32: Endringer i %
B33: Innmålt m/ | C33: Innmålt m/ | D33: Innmålt m/ | E33: Innmålt m/ | F33: Innmålt m/ | G33: Innmålt m/ | H33: Gjennom- | I33: Innmålt m/ | J33: Innmålt m/ | K33: Gjen.snitt | L33: Innmålt m/ | M33: Gjen.snitt
B34: overskudd | C34: underskudd | D34: overskudd | E34: underskudd | F34: overskudd | G34: underskudd | H34: snitt | I34: overskudd | J34: underskudd | K34: fortjeneste | L34: overskudd | M34: fortjeneste
A35: Bergen | B35: =B7+B21 -> 0 | C35: 0 | D35: =D7+D21 -> 0 | E35: 0 | F35: 0 | G35: 0 | H35: =IF(D35+E35=0,0,(B35+C35)/(D35+E35)) -> 0 | I35: 1158463 | J35: 0 | K35: 260.1533797 | L35: =IF(I35=0,0,(B35-I35)/I35) -> -1 | M35: =IF(K35=0,0,(H35-K35)/K35) -> -1
A36: Nordland | B36: =B8+B22 -> 0 | C36: 0 | D36: 0 | E36: 0 | F36: 0 | G36: 0 | H36: =IF(D36+E36=0,0,(B36+C36)/(D36+E36)) -> 0 | I36: 289644 | J36: 0 | K36: 406.2328191 | L36: =IF(I36=0,0,(B36-I36)/I36) -> -1 | M36: =IF(K36=0,0,(H36-K36)/K36) -> -1
A37: Stavanger | B37: =B9+B23 -> 0 | C37: 0 | D37: 0 | E37: 0 | F37: 0 | G37: 0 | H37: 0 | I37: 0 | J37: 0 | K37: 0 | L37: 0 | M37: 0
A38: Tromsø | B38: =B10+B24 -> 0 | C38: 0 | D38: 0 | E38: 0 | F38: 0 | G38: 0 | H38: 0 | I38: 0 | J38: 0 | K38: 0 | L38: 0 | M38: 0
A39: Trondheim | B39: =B11+B25 -> 25873355.55 | C39: =C11+C25 -> 4122054.68 | D39: =D11+D25 -> 98134.4 | E39: 26609 | F39: =(F11+F25)/2 -> 263.6487483 | G39: =(G11+G25)/2 -> 157.5505439 | H39: =IF(D39+E39=0,0,(B39+C39)/(D39+E39)) -> 240.4568917 | I39: 21182253 | J39: 0 | K39: 254.419168 | L39: 0.2214638145 | M39: -0.05487902664
A40: Oslo | B40: =B12+B26 -> 21881534 | C40: =C12+C26 -> 4353473 | D40: =D12+D26 -> 82489 | E40: =E12+E26 -> 22980 | F40: =F12+F26 -> 265.266084 | G40: 189.4461706 | H40: =IF(D40+E40=0,0,(B26+C26)/(D40+E40)) -> 248.7461434 | I40: 40117609.79 | J40: 0 | K40: 311.3138101 | L40: =IF(I40=0,0,(B26-I40)/I40) -> -0.4545653613 | M40: -0.2009794125
A41: Landet i alt | B41: =B13+B27 -> 47754889.55 | C41: =C13+C27 -> 8475527.68 | D41: 180623.4 | E41: 49589 | F41: =(F13+F27)/2 -> 264.1168735 | G41: =(G13+G27)/2 -> 169.9108268 | H41: =IF(D41+E41=0,0,(B41+C41)/(D41+E41)) -> 244.2545112 | I41: 62747969.79 | J41: 0 | K41: 288.7768251 | L41: -0.2389412803 | M41: -0.1541755087

Sheet BLIKK OG VENTILASJON
A2: ="MÅLESTATISTIKK FOR BLIKK- OG VENTILASJONSARBEID - 1. HALVÅR "&FORS!$A$14 -> MÅLESTATISTIKK FOR BLIKK- OG VENTILASJONSARBEID - 1. HALVÅR 2015
B4: Målesum i kroner | D4: Timer | F4: ="Fortjeneste 1. halvår "&FORS!$A$14-0 -> Fortjeneste 1. halvår 2015 | I4: =" 1. halvår "&FORS!$A$14-1 -> 1. halvår 2014 | L4: Endringer i %
B5: Innmålt m/ | C5: Innmålt m/ | D5: Innmålt m/ | E5: Innmålt m/ | F5: Innmålt m/ | G5: Innmålt m/ | H5: Gjennom- | I5: Innmålt m/ | J5: Innmålt m/ | K5: Gjen.snitt | L5: Innmålt m/ | M5: Gjen.snitt
B6: overskudd | C6: underskudd | D6: overskudd | E6: underskudd | F6: overskudd | G6: underskudd | H6: snitt | I6: overskudd | J6: underskudd | K6: fortjeneste | L6: overskudd | M6: fortjeneste
A7: Nordland | F7: =IF(D7=0,0,B7/D7) -> 0 | G7: 0 | H7: =IF(D7+E7=0,0,(B7+C7)/(D7+E7)) -> 0 | L7: =IF(I7=0,0,(B7-I7)/I7) -> 0 | M7: =IF(K7=0,0,(H7-K7)/K7) -> 0
A8: Stavanger | G8: 0 | H8: =IF(D8+E8=0,0,(B8+C8)/(D8+E8)) -> 0 | L8: =IF(I8=0,0,(B8-I8)/I8) -> 0 | M8: =IF(K8=0,0,(H8-K8)/K8) -> 0
A9: Oslo | G9: 0 | H9: =IF(D9+E9=0,0,(B9+C9)/(D9+E9)) -> 0 | L9: 0 | M9: 0
A10: Landet i alt | B10: =SUM(B7:B9) -> 0 | C10: =SUM(C7:C9) -> 0 | D10: =SUM(D7:D9) -> 0 | E10: =SUM(E7:E9) -> 0 | F10: 0 | G10: 0 | H10: =IF(D10+E10=0,0,(B10+C10)/(D10+E10)) -> 0 | L10: 0 | M10: 0
L11: 0 | M11: 0
L12: 0 | M12: 0
A13: ="MÅLESTATISTIKK FOR BLIKK- OG VENTILASJONSARBEID - 2. HALVÅR "&FORS!$A$14 -> MÅLESTATISTIKK FOR BLIKK- OG VENTILASJONSARBEID - 2. HALVÅR 2015 | L13: 0 | M13: 0
B15: Målesum i kroner | D15: Timer | F15: ="Fortjeneste 2. halvår "&FORS!$A$14-0 -> Fortjeneste 2. halvår 2015 | I15: =" 2. halvår "&FORS!$A$14-1 -> 2. halvår 2014 | L15: Endringer i %
B16: Innmålt m/ | C16: Innmålt m/ | D16: Innmålt m/ | E16: Innmålt m/ | F16: Innmålt m/ | G16: Innmålt m/ | H16: Gjennom- | I16: Innmålt m/ | J16: Innmålt m/ | K16: Gjen.snitt | L16: Innmålt m/ | M16: Gjen.snitt
B17: overskudd | C17: underskudd | D17: overskudd | E17: underskudd | F17: overskudd | G17: underskudd | H17: snitt | I17: overskudd | J17: underskudd | K17: fortjeneste | L17: overskudd | M17: fortjeneste
A18: Nordland | F18: =IF(D18=0,0,B18/D18) -> 0 | G18: 0 | H18: =IF(D18+E18=0,0,(B18+C18)/(D18+E18)) -> 0 | L18: =IF(I18=0,0,(B18-I18)/I18) -> 0 | M18: =IF(K18=0,0,(H18-K18)/K18) -> 0
A19: Stavanger | F19: 0 | G19: 0 | H19: =IF(D19+E19=0,0,(B19+C19)/(D19+E19)) -> 0 | L19: =IF(I19=0,0,(B19-I19)/I19) -> 0 | M19: =IF(K19=0,0,(H19-K19)/K19) -> 0
A20: Oslo | F20: 0 | G20: 0 | H20: =IF(D20+E20=0,0,(B20+C20)/(D20+E20)) -> 0 | L20: 0 | M20: 0
A21: Landet i alt | B21: =SUM(B18:B20) -> 0 | C21: =SUM(C18:C20) -> 0 | D21: =SUM(D18:D20) -> 0 | E21: =SUM(C18:C20) -> 0 | F21: 0 | G21: 0 | H21: =IF(D21+E21=0,0,(B21+C21)/(D21+E21)) -> 0 | L21: 0 | M21: 0
A24: ="MÅLESTATISTIKK FOR BLIKK- OG VENTILASJONSARBEID - GJENNOMSNITT HELE ÅRET "&FORS!$A$14 -> MÅLESTATISTIKK FOR BLIKK- OG VENTILASJONSARBEID - GJENNOMSNITT HELE ÅRET 2015
B26: Målesum i kroner | D26: Timer | F26: ="Fortjeneste hele "&FORS!$A$14-0 -> Fortjeneste hele 2015 | I26: =" Hele året "&FORS!$A$14-1 -> Hele året 2014 | L26: Endringer i %
B27: Innmålt m/ | C27: Innmålt m/ | D27: Innmålt m/ | E27: Innmålt m/ | F27: Innmålt m/ | G27: Innmålt m/ | H27: Gjennom- | I27: Innmålt m/ | J27: Innmålt m/ | K27: Gjen.snitt | L27: Innmålt m/ | M27: Gjen.snitt
B28: overskudd | C28: underskudd | D28: overskudd | E28: underskudd | F28: overskudd | G28: underskudd | H28: snitt | I28: overskudd | J28: underskudd | K28: fortjeneste | L28: overskudd | M28: fortjeneste
A29: Nordland | B29: =B7+B18 -> 0 | C29: 0 | D29: 0 | E29: 0 | F29: =IF(D29=0,0,B29/D29) -> 0 | G29: 0 | H29: =IF(D29+E29=0,0,(B29+C29)/(D29+E29)) -> 0 | L29: =IF(I29=0,0,(B29-I29)/I29) -> 0 | M29: =IF(K29=0,0,(H29-K29)/K29) -> 0
A30: Stavanger | B30: 0 | C30: 0 | D30: 0 | E30: 0 | F30: 0 | G30: 0 | H30: =IF(D30+E30=0,0,(B30+C30)/(D30+E30)) -> 0 | L30: =IF(I30=0,0,(B30-I30)/I30) -> 0 | M30: =IF(K30=0,0,(H30-K30)/K30) -> 0
A31: Oslo | B31: 0 | C31: 0 | D31: 0 | E31: 0 | F31: 0 | G31: 0 | H31: =IF(D31+E31=0,0,(B31+C31)/(D31+E31)) -> 0 | L31: 0 | M31: 0
A32: Landet i alt | B32: =SUM(B29:B31) -> 0 | C32: =SUM(C29:C31) -> 0 | D32: =SUM(D29:D31) -> 0 | E32: =SUM(E29:E31) -> 0 | F32: 0 | G32: 0 | H32: =IF(D32+E32=0,0,(B32+C32)/(D32+E32)) -> 0 | L32: 0 | M32: 0

Sheet TAKTEKKERE
A2: ="MÅLESTATISTIKK FOR TAKTEKKERE - 1. HALVÅR "&FORS!$A$14 -> MÅLESTATISTIKK FOR TAKTEKKERE - 1. HALVÅR 2015
B4: Målesum i kroner | D4: Timer | F4: ="Fortjeneste 1. halvår "&FORS!$A$14-0 -> Fortjeneste 1. halvår 2015 | I4: =" 1. halvår "&FORS!$A$14-1 -> 1. halvår 2014 | L4: Endringer i %
B5: Innmålt m/ | C5: Innmålt m/ | D5: Innmålt m/ | E5: Innmålt m/ | F5: Innmålt m/ | G5: Innmålt m/ | H5: Gjennom- | I5: Innmålt m/ | J5: Innmålt m/ | K5: Gjen.snitt | L5: Innmålt m/ | M5: Gjen.snitt
B6: overskudd | C6: underskudd | D6: overskudd | E6: underskudd | F6: overskudd | G6: underskudd | H6: snitt | I6: overskudd | J6: underskudd | K6: fortjeneste | L6: overskudd | M6: fortjeneste
A7: Agder | B7: 360266 | D7: 1122 | F7: =IF(D7=0,0,B7/D7) -> 321.0926916 | G7: =IF(E7=0,0,C7/E7) -> 0 | H7: =IF(D7+E7=0,0,(B7+C7)/(D7+E7)) -> 321.0926916 | I7: 753730 | J7: 4418 | K7: 285.5548023 | L7: =IF(I7=0,0,(B7-I7)/I7) -> -0.5220224749 | M7: =IF(K7=0,0,(H7-K7)/K7) -> 0.1244520809
A8: Haugesund | F8: =IF(D8=0,0,B8/D8) -> 0 | G8: =IF(E8=0,0,C8/E8) -> 0 | H8: =IF(D8+E8=0,0,(B8+C8)/(D8+E8)) -> 0 | K8: 0 | L8: =IF(I8=0,0,(B8-I8)/I8) -> 0 | M8: =IF(K8=0,0,(H8-K8)/K8) -> 0
A9: Glåmdal | F9: 0 | G9: 0 | H9: 0 | K9: 0 | L9: 0 | M9: 0
A10: Hamar og Omegn | B10: 856720 | C10: 123643 | D10: 2877 | E10: 770 | F10: 297.7824122 | G10: 160.5753247 | H10: 268.8135454 | I10: 568606 | J10: 40535 | K10: 227.3762598 | L10: 0.5067023563 | M10: 0.1822410379
A11: Bergen | B11: 689244.3 | D11: 2231.7 | F11: 308.8427208 | G11: 0 | H11: 308.8427208 | I11: 878961.23 | K11: 305.8320216 | L11: -0.215842205 | M11: 0.009844290364
A12: Nordland | F12: =IF(D12=0,0,B12/D12) -> 0 | G12: =IF(E12=0,0,C12/E12) -> 0 | H12: =IF(D12+E12=0,0,(B12+C12)/(D12+E12)) -> 0 | I12: 102077 | K12: 338.0033113 | L12: =IF(I12=0,0,(B12-I12)/I12) -> -1 | M12: =IF(K12=0,0,(H12-K12)/K12) -> -1
A13: Stavanger | B13: 5278154 | C13: 204969 | D13: 19435 | E13: 1211 | F13: 271.5798302 | G13: 169.2559868 | H13: 265.5779812 | I13: 7144853 | J13: 194536 | K13: 275.4508913 | L13: -0.2612648574 | M13: -0.03584272352
A14: Telemark | B14: 1034676 | D14: 2942.3 | F14: 351.6555076 | G14: 0 | H14: 351.6555076 | I14: 1981260 | J14: 10585 | K14: 329.5846778 | L14: -0.4777686927 | M14: 0.06696558224
A15: Trondheim | B15: 4620371 | C15: 590487 | D15: 14365 | E15: 3155 | F15: 321.6408632 | G15: 187.1591125 | H15: 297.4234018 | I15: 4142845 | J15: 702532 | K15: 270.3139191 | L15: 0.1152652344 | M15: 0.1002888893
A16: Vestfold | B16: 169042 | D16: 679.82 | F16: =IF(D16=0,0,B16/D16) -> 248.6569974 | G16: =IF(E16=0,0,C16/E16) -> 0 | H16: =IF(D16+E16=0,0,(B16+C16)/(D16+E16)) -> 248.6569974 | I16: 299842 | K16: 287.342597 | L16: -0.4362297477 | M16: -0.1346323169
A17: Oslo | B17: 4792814.03 | C17: 288977.45 | D17: 14184.9 | E17: 1716.7 | F17: 337.8814112 | G17: 168.33311 | H17: 319.5773683 | I17: 4905952.77 | J17: 582505.85 | K17: 265.0085039 | L17: -0.02306152246 | M17: 0.2059136353
A18: Landet i alt | B18: =SUM(B7:B17) -> 17801287.33 | C18: =SUM(C7:C17) -> 1208076.45 | D18: =SUM(D7:D17) -> 57837.72 | E18: =SUM(E7:E17) -> 6852.7 | F18: =IF(D18=0,0,B18/D18) -> 307.779894 | G18: =IF(E18=0,0,C18/E18) -> 176.2920382 | H18: =IF(D18+E18=0,0,(B18+C18)/(D18+E18)) -> 293.8512964 | I18: 20778127 | J18: 1535111.85 | K18: 275.8893246 | L18: -0.1432679505 | M18: 0.06510571514
A21: ="MÅLESTATISTIKK FOR TAKTEKKERE - 2. HALVÅR "&FORS!$A$14 -> MÅLESTATISTIKK FOR TAKTEKKERE - 2. HALVÅR 2015
B23: Målesum i kroner | D23: Timer | F23: ="Fortjeneste 2. halvår "&FORS!$A$14-0 -> Fortjeneste 2. halvår 2015 | I23: =" 2. halvår "&FORS!$A$14-1 -> 2. halvår 2014 | L23: Endringer i %
B24: Innmålt m/ | C24: Innmålt m/ | D24: Innmålt m/ | E24: Innmålt m/ | F24: Innmålt m/ | G24: Innmålt m/ | H24: Gjennom- | I24: Innmålt m/ | J24: Innmålt m/ | K24: Gjen.snitt | L24: Innmålt m/ | M24: Gjen.snitt
B25: overskudd | C25: underskudd | D25: overskudd | E25: underskudd | F25: overskudd | G25: underskudd | H25: snitt | I25: overskudd | J25: underskudd | K25: fortjeneste | L25: overskudd | M25: fortjeneste
A26: Agder | B26: 201527 | D26: 579 | F26: =IF(D26=0,0,B26/D26) -> 348.0604491 | G26: =IF(E26=0,0,C26/E26) -> 0 | H26: =IF(D26+E26=0,0,(B26+C26)/(D26+E26)) -> 348.0604491 | I26: 394020 | J26: 16475 | K26: 294.2616487 | L26: =IF(I26=0,0,(B26-I26)/I26) -> -0.4885361149 | M26: =IF(K26=0,0,(H26-K26)/K26) -> 0.1828264082
A27: Haugesund | F27: =IF(D27=0,0,B27/D27) -> 0 | G27: =IF(E27=0,0,C27/E27) -> 0 | H27: =IF(D27+E27=0,0,(B27+C27)/(D27+E27)) -> 0 | K27: 0 | L27: =IF(I27=0,0,(B27-I27)/I27) -> 0 | M27: =IF(K27=0,0,(H27-K27)/K27) -> 0
A28: Glåmdal | F28: 0 | G28: 0 | H28: 0 | K28: 0 | L28: 0 | M28: 0
A29: Hamar og Omegn | B29: 1264367 | C29: 113701 | D29: 3731 | E29: 765 | F29: 338.8815331 | G29: 148.6287582 | H29: 306.5097865 | I29: 1204068 | J29: 121179 | K29: 279.1756899 | L29: 0.05007939751 | M29: 0.09791001708
A30: Bergen | B30: 60049.23 | D30: 176 | F30: =IF(D30=0,0,B30/D30) -> 341.1888068 | G30: =IF(E30=0,0,C30/E30) -> 0 | H30: =IF(D30+E30=0,0,(B30+C30)/(D30+E30)) -> 341.1888068 | I30: 134939 | K30: 246.4639269 | L30: -0.5549898102 | M30: 0.3843356756
A31: Nordland | F31: =IF(D31=0,0,B31/D31) -> 0 | G31: =IF(E31=0,0,C31/E31) -> 0 | H31: =IF(D31+E31=0,0,(B31+C31)/(D31+E31)) -> 0 | K31: 0 | L31: 0 | M31: 0
A32: Stavanger | B32: 4611714.68 | C32: 262724.06 | D32: 13745.5 | E32: 1380.3 | F32: 335.5072336 | G32: 190.3383757 | H32: 322.2598963 | I32: 3576392 | J32: 525653 | K32: 259.3276647 | L32: 0.2894880315 | M32: 0.2426745782
A33: Telemark | B33: 915166.5 | D33: 2716.4 | F33: 336.9041746 | G33: 0 | H33: 336.9041746 | I33: 1056868.93 | J33: 1152.14 | K33: 303.3578203 | L33: -0.1340775814 | M33: 0.1105834498
A34: Trondheim | B34: 5479666 | C34: 375200 | D34: 16840 | E34: 2164 | F34: =IF(D34=0,0,B34/D34) -> 325.3958432 | G34: 173.3826248 | H34: =IF(D34+E34=0,0,(B34+C34)/(D34+E34)) -> 308.0859819 | I34: 5381763 | J34: 561367 | K34: 292.4768701 | L34: 0.01819162234 | M34: 0.05336870507
A35: Vestfold | F35: =IF(D35=0,0,B35/D35) -> 0 | G35: 0 | H35: =IF(D35+E35=0,0,(B35+C35)/(D35+E35)) -> 0 | I35: 230051 | K35: 285.9552517 | L35: -1 | M35: -1
A36: Oslo | B36: 3681003.65 | C36: 570504.05 | D36: 12324.9 | E36: 3668.4 | F36: 298.663977 | G36: 155.5184958 | H36: 265.8305478 | I36: 5602026.4 | J36: 415305.15 | K36: 301.9914958 | L36: -0.3429156903 | M36: -0.1197416104
A37: Landet i alt | B37: =SUM(B26:B36) -> 16213494.06 | C37: =SUM(C26:C36) -> 1322129.11 | D37: =SUM(D26:D36) -> 50112.8 | E37: =SUM(E26:E36) -> 7977.7 | F37: =IF(D37=0,0,B37/D37) -> 323.539975 | G37: =IF(E37=0,0,C37/E37) -> 165.7281058 | H37: =IF(D37+E37=0,0,(B37+C37)/(D37+E37)) -> 301.8673134 | I37: 17580128.33 | J37: 1641131.29 | K37: 286.6910624 | L37: -0.07773744562 | M37: 0.05293590543
A40: ="MÅLESTATISTIKK FOR TAKTEKKERE - GJENNOMSNITT HELE ÅRET "&FORS!$A$14 -> MÅLESTATISTIKK FOR TAKTEKKERE - GJENNOMSNITT HELE ÅRET 2015
B42: Målesum i kroner | D42: Timer | F42: ="Fortjeneste hele "&FORS!$A$14-0 -> Fortjeneste hele 2015 | I42: =" Hele året "&FORS!$A$14-1 -> Hele året 2014 | L42: Endringer i %
B43: Innmålt m/ | C43: Innmålt m/ | D43: Innmålt m/ | E43: Innmålt m/ | F43: Innmålt m/ | G43: Innmålt m/ | H43: Gjennom- | I43: Innmålt m/ | J43: Innmålt m/ | K43: Gjen.snitt | L43: Innmålt m/ | M43: Gjen.snitt
B44: overskudd | C44: underskudd | D44: overskudd | E44: underskudd | F44: overskudd | G44: underskudd | H44: snitt | I44: overskudd | J44: underskudd | K44: fortjeneste | L44: overskudd | M44: fortjeneste
A45: Agder | B45: =B7+B26 -> 561793 | C45: =C7+C26 -> 0 | D45: 1701 | E45: 0 | F45: =B45/D45 -> 330.2721928 | H45: =IF(D45+E45=0,0,(B45+C45)/(D45+E45)) -> 330.2721928 | I45: 1147750 | J45: 20893 | K45: 288.5538272 | L45: =IF(I45=0,0,(B45-I45)/I45) -> -0.5105266826 | M45: =IF(K45=0,0,(H45-K45)/K45) -> 0.1445774124
A46: Haugesund | B46: =B8+B27 -> 0 | C46: 0 | D46: 0 | E46: 0 | G46: 0 | H46: =IF(D46+E46=0,0,(B46+C46)/(D46+E46)) -> 0 | I46: 0 | J46: 0 | K46: 0 | L46: =IF(I46=0,0,(B46-I46)/I46) -> 0 | M46: =IF(K46=0,0,(H46-K46)/K46) -> 0
A47: Glåmdal | B47: =B9+B28 -> 0 | C47: 0 | D47: 0 | E47: 0 | H47: 0 | I47: 0 | J47: 0 | K47: 0 | L47: 0 | M47: 0
A48: Hamar og Omegn | B48: =B10+B29 -> 2121087 | C48: 237344 | D48: 6608 | E48: 1535 | F48: =B48/D48 -> 320.9877421 | G48: =C48/E48 -> 154.6214984 | H48: 289.626796 | I48: 1772674 | J48: 161714 | K48: 260.4885537 | L48: 0.1965465731 | M48: 0.1118599719
A49: Bergen | B49: =B11+B30 -> 749293.53 | C49: 0 | D49: 2407.7 | E49: 0 | F49: 311.2071811 | H49: 311.2071811 | I49: 1013900.23 | J49: 0 | K49: 296.3320853 | L49: -0.2609790314 | M49: 0.05019738503
A50: Nordland | B50: =B12+B31 -> 0 | C50: 0 | D50: 0 | E50: 0 | H50: 0 | I50: 102077 | J50: 0 | K50: 338.0033113 | L50: -1 | M50: -1
A51: Stavanger | B51: =B13+B32 -> 9889868.68 | C51: 467693.06 | D51: 33180.5 | E51: 2591.3 | F51: 298.0626778 | G51: =C51/E51 -> 180.4858797 | H51: 289.5454447 | I51: 10721245 | J51: 720189 | K51: 269.4447872 | L51: -0.0775447553 | M51: 0.07460028348
A52: Telemark | B52: =B14+B33 -> 1949842.5 | C52: 0 | D52: 5658.7 | E52: 0 | F52: 344.5742838 | H52: 344.5742838 | I52: 3038128.93 | J52: 11737.14 | K52: 319.987627 | L52: -0.3582094292 | M52: 0.07683627373
A53: Trondheim | B53: =B15+B34 -> 10100037 | C53: 965687 | D53: 31205 | E53: 5319 | F53: 323.6672649 | G53: 181.5542395 | H53: 302.9713065 | I53: 9524608 | J53: 1263899 | K53: 282.089345 | L53: 0.06041497981 | M53: 0.07402605556
A54: Vestfold | B54: =B16+B35 -> 169042 | C54: 0 | D54: 679.82 | E54: 0 | F54: 248.6569974 | H54: 248.6569974 | I54: 529893 | J54: 0 | K54: 286.7386364 | L54: -0.680988426 | M54: -0.1328095837
A55: Oslo | B55: =B17+B36 -> 8473817.68 | C55: 859481.5 | D55: 26509.8 | E55: 5385.1 | F55: 319.6484953 | G55: 159.6036285 | H55: 292.6266952 | I55: 10507979.17 | J55: 997811 | K55: 283.142784 | L55: -0.1935825583 | M55: 0.03349515414
A56: Landet i alt | B56: =B18+B37 -> 34014781.39 | C56: 2530205.56 | D56: 107950.52 | E56: 14830.4 | F56: 315.0960402 | G56: 170.6093942 | H56: 297.6438599 | I56: 38358255.33 | J56: 3176243.14 | K56: 280.7851565 | L56: -0.1132343977 | M56: 0.06004129135

Sheet MURERE
A2: ="MÅLESTATISTIKK FOR MURERE - 1. HALVÅR "&FORS!$A$14 -> MÅLESTATISTIKK FOR MURERE - 1. HALVÅR 2015
B4: Målesum i kroner | D4: Timer | F4: ="Fortjeneste 1. halvår "&FORS!$A$14-0 -> Fortjeneste 1. halvår 2015 | I4: =" 1. halvår "&FORS!$A$14-1 -> 1. halvår 2014 | L4: Endringer i %
B5: Innmålt m/ | C5: Innmålt m/ | D5: Innmålt m/ | E5: Innmålt m/ | F5: Innmålt m/ | G5: Innmålt m/ | H5: Gjennom- | I5: Innmålt m/ | J5: Innmålt m/ | K5: Gjen.snitt | L5: Innmålt m/ | M5: Gjen.snitt
B6: overskudd | C6: underskudd | D6: overskudd | E6: underskudd | F6: overskudd | G6: underskudd | H6: snitt | I6: overskudd | J6: underskudd | K6: fortjeneste | L6: overskudd | M6: fortjeneste
A7: Agder | F7: =IF(D7=0,0,B7/D7) -> 0 | G7: =IF(E7=0,0,C7/E7) -> 0 | H7: =IF(D7+E7=0,0,(B7+C7)/(D7+E7)) -> 0 | K7: 0 | L7: =IF(I7=0,0,(B7-I7)/I7) -> 0 | M7: =IF(K7=0,0,(H7-K7)/K7) -> 0
A8: Bergen | B8: 930716.6 | D8: 3579.32 | F8: =IF(D8=0,0,B8/D8) -> 260.0260943 | G8: =IF(E8=0,0,C8/E8) -> 0 | H8: =IF(D8+E8=0,0,(B8+C8)/(D8+E8)) -> 260.0260943 | I8: 633569.49 | K8: 271.4754863 | L8: =IF(I8=0,0,(B8-I8)/I8) -> 0.4690047654 | M8: =IF(K8=0,0,(H8-K8)/K8) -> -0.04217468083
A9: Glåmdal | F9: 0 | G9: 0 | H9: 0 | K9: 0 | L9: 0 | M9: 0
A10: Hamar og Omegn | B10: 107725.94 | D10: 270.9 | F10: 397.6594315 | G10: 0 | H10: 397.6594315 | I10: 172577.51 | K10: 313.8914332 | L10: -0.3757822789 | M10: 0.2668693357
A11: Nordland | F11: 0 | G11: 0 | H11: 0 | K11: 0 | L11: 0 | M11: 0
A12: Stavanger | B12: 585212 | D12: 1927.5 | F12: 303.6119326 | G12: 0 | H12: 303.6119326 | I12: 560795 | K12: 315.9408451 | L12: 0.0435399745 | M12: -0.03902285098
A13: Tromsø | F13: 0 | H13: 0 | K13: 0 | L13: 0 | M13: 0
A14: Telemark | F14: 0 | G14: 0 | H14: 0 | K14: 0 | L14: 0 | M14: 0
A15: Trondheim | B15: 2536550 | C15: 222947 | D15: 9189 | E15: 1677 | F15: =IF(D15=0,0,B15/D15) -> 276.0420067 | G15: =IF(E15=0,0,C15/E15) -> 132.9439475 | H15: =IF(D15+E15=0,0,(B15+C15)/(D15+E15)) -> 253.9570219 | I15: 4330472 | J15: 470188 | K15: 264.995584 | L15: -0.4142555361 | M15: -0.04165564552
A16: Vestfold | F16: 0 | G16: 0 | H16: 0 | K16: 0 | L16: 0 | M16: 0
A17: Oslo | B17: 7683995 | D17: 27175 | F17: 282.7597056 | G17: 0 | H17: 282.7597056 | I17: 11368851 | K17: 256.0667372 | L17: -0.3241185939 | M17: 0.1042422325
A18: Østfold | B18: 2355972 | D18: 8575.5 | F18: 274.7329019 | G18: 0 | H18: 274.7329019 | I18: 715179 | K18: 244.3803178 | L18: 2.294241022 | M18: 0.1242022449
A19: Landet i alt | B19: =SUM(B7:B18) -> 14200171.54 | C19: =SUM(C7:C18) -> 222947 | D19: =SUM(D7:D18) -> 50717.22 | E19: =SUM(E7:E18) -> 1677 | F19: =IF(D19=0,0,B19/D19) -> 279.9871827 | G19: =IF(E19=0,0,C19/E19) -> 132.9439475 | H19: =IF(D19+E19=0,0,(B19+C19)/(D19+E19)) -> 275.2807188 | I19: 17781444 | J19: 470188 | K19: 260.3689919 | L19: =IF(I19=0,0,(B19-I19)/I19) -> -0.2014050411 | M19: =IF(K19=0,0,(H19-K19)/K19) -> 0.05727151587
A22: ="MÅLESTATISTIKK FOR MURERE - 2. HALVÅR "&FORS!$A$14 -> MÅLESTATISTIKK FOR MURERE - 2. HALVÅR 2015
B24: Målesum i kroner | D24: Timer | F24: ="Fortjeneste 2. halvår "&FORS!$A$14-0 -> Fortjeneste 2. halvår 2015 | I24: =" 2. halvår "&FORS!$A$14-1 -> 2. halvår 2014 | L24: Endringer i %
B25: Innmålt m/ | C25: Innmålt m/ | D25: Innmålt m/ | E25: Innmålt m/ | F25: Innmålt m/ | G25: Innmålt m/ | H25: Gjennom- | I25: Innmålt m/ | J25: Innmålt m/ | K25: Gjen.snitt | L25: Innmålt m/ | M25: Gjen.snitt
B26: overskudd | C26: underskudd | D26: overskudd | E26: underskudd | F26: overskudd | G26: underskudd | H26: snitt | I26: overskudd | J26: underskudd | K26: fortjeneste | L26: overskudd | M26: fortjeneste
A27: Agder | F27: =IF(D27=0,0,B27/D27) -> 0 | G27: =IF(E27=0,0,C27/E27) -> 0 | H27: =IF(D27+E27=0,0,(B27+C27)/(D27+E27)) -> 0 | K27: 0 | L27: =IF(I27=0,0,(B27-I27)/I27) -> 0 | M27: =IF(K27=0,0,(H27-K27)/K27) -> 0
A28: Bergen | G28: =IF(E28=0,0,C28/E28) -> 0 | H28: =IF(D28+E28=0,0,(B28+C28)/(D28+E28)) -> 0 | K28: 0 | L28: =IF(I28=0,0,(B28-I28)/I28) -> 0 | M28: =IF(K28=0,0,(H28-K28)/K28) -> 0
A29: Glåmdal | F29: =IF(D29=0,0,B29/D29) -> 0 | G29: 0 | H29: 0 | K29: 0 | L29: 0 | M29: 0
A30: Hamar og Omegn | B30: 96908.82 | D30: 270.9 | F30: =IF(D30=0,0,B30/D30) -> 357.7291251 | G30: 0 | H30: 357.7291251 | K30: 0 | L30: 0 | M30: 0
A31: Nordland | F31: 0 | G31: 0 | H31: 0 | K31: 0 | L31: 0 | M31: 0
A32: Stavanger | B32: 961889.1 | D32: 3014 | F32: 319.1403782 | G32: 0 | H32: 319.1403782 | I32: 943176 | K32: 319.8290946 | L32: 0.01984051757 | M32: -0.002153388747
A33: Tromsø | F33: 0 | L33: 0 | M33: 0
A34: Telemark | F34: 0 | G34: 0 | H34: 0 | K34: 0 | L34: 0 | M34: 0
A35: Trondheim | B35: 1609931 | D35: 5860 | E35: 0 | F35: 274.7322526 | G35: =IF(E35=0,0,C35/E35) -> 0 | H35: =IF(D35+E35=0,0,(B35+C35)/(D35+E35)) -> 274.7322526 | I35: 3107769 | K35: 278.324288 | L35: -0.4819656802 | M35: -0.01290593603
A36: Vestfold | F36: 0 | G36: 0 | H36: 0 | K36: 0 | L36: 0 | M36: 0
A37: Oslo | B37: 10240692 | D37: 36338 | F37: 281.8177115 | G37: 0 | H37: 281.8177115 | I37: 8122439 | K37: 275.8886926 | L37: 0.2607902626 | M37: 0.02149061924
A38: Østfold | B38: 3266749.69 | D38: 10773 | F38: =IF(D38=0,0,B38/D38) -> 303.2349104 | G38: 0 | H38: 303.2349104 | I38: 1668825 | K38: 335.1390702 | L38: 0.9575148323 | M38: -0.0951967783
A39: Landet i alt | B39: =SUM(B30:B38) -> 16176170.61 | D39: =SUM(D28:D38) -> 56255.9 | F39: =IF(D39=0,0,B39/D39) -> 287.546206 | G39: =IF(E39=0,0,C39/E39) -> 0 | H39: =IF(D39+E39=0,0,(B39+C39)/(D39+E39)) -> 287.546206 | I39: 13842209 | J39: 0 | K39: 285.1976182 | L39: 0.1686119325 | M39: 0.008234948715
A42: ="MÅLESTATISTIKK FOR MURERE - GJENNOMSNITT HELE ÅRET "&FORS!$A$14 -> MÅLESTATISTIKK FOR MURERE - GJENNOMSNITT HELE ÅRET 2015
B44: Målesum i kroner | D44: Timer | F44: ="Fortjeneste hele "&FORS!$A$14-0 -> Fortjeneste hele 2015 | I44: =" Hele året "&FORS!$A$14-1 -> Hele året 2014 | L44: Endringer i %
B45: Innmålt m/ | C45: Innmålt m/ | D45: Innmålt m/ | E45: Innmålt m/ | F45: Innmålt m/ | G45: Innmålt m/ | H45: Gjennom- | I45: Innmålt m/ | J45: Innmålt m/ | K45: Gjen.snitt | L45: Innmålt m/ | M45: Gjen.snitt
B46: overskudd | C46: underskudd | D46: overskudd | E46: underskudd | F46: overskudd | G46: underskudd | H46: snitt | I46: overskudd | J46: underskudd | K46: fortjeneste | L46: overskudd | M46: fortjeneste
A47: Agder | B47: =B7+B27 -> 0 | C47: =C7+C27 -> 0 | D47: 0 | E47: 0 | F47: =IF(D47=0,0,B47/D47) -> 0 | G47: =IF(E47=0,0,C47/E47) -> 0 | H47: =IF(D47+E47=0,0,(B47+C47)/(D47+E47)) -> 0 | I47: 0 | J47: 0 | K47: 0 | L47: =IF(I47=0,0,(B47-I47)/I47) -> 0 | M47: =IF(K47=0,0,(H47-K47)/K47) -> 0
A48: Bergen | B48: =B8+B28 -> 930716.6 | C48: 0 | D48: 3579.32 | E48: 0 | F48: =IF(D48=0,0,B48/D48) -> 260.0260943 | G48: =IF(E48=0,0,C48/E48) -> 0 | H48: =IF(D48+E48=0,0,(B48+C48)/(D48+E48)) -> 260.0260943 | I48: 633569.49 | J48: 0 | K48: 271.4754863 | L48: =IF(I48=0,0,(B48-I48)/I48) -> 0.4690047654 | M48: =IF(K48=0,0,(H48-K48)/K48) -> -0.04217468083
A49: Glåmdal | B49: 0 | C49: 0 | D49: 0 | E49: 0 | F49: 0 | G49: 0 | H49: 0 | I49: 0 | J49: 0 | K49: 0 | L49: 0 | M49: 0
A50: Hamar og Omegn | B50: 204634.76 | C50: 0 | D50: 541.8 | E50: 0 | F50: =IF(D50=0,0,B50/D50) -> 377.6942783 | G50: 0 | H50: 377.6942783 | I50: 172577.51 | J50: 0 | K50: 313.8914332 | L50: 0.1857556642 | M50: 0.2032640535
A51: Nordland | B51: 0 | C51: 0 | D51: 0 | E51: 0 | F51: 0 | G51: 0 | H51: 0 | I51: 0 | J51: 0 | K51: 0 | L51: 0 | M51: 0
A52: Stavanger | B52: 1547101.1 | C52: 0 | D52: 4941.5 | E52: 0 | F52: 313.0832945 | G52: 0 | H52: 313.0832945 | I52: 1503971 | J52: 0 | K52: 318.3681202 | L52: 0.02867748115 | M52: -0.01659973268
A53: Tromsø | B53: 0 | C53: 0 | D53: 0 | E53: 0 | F53: 0 | G53: 0 | H53: 0 | I53: 0 | J53: 0 | K53: 0 | L53: 0 | M53: 0
A54: Telemark | B54: 0 | C54: 0 | D54: 0 | E54: 0 | F54: 0 | G54: 0 | H54: 0 | I54: 0 | J54: 0 | K54: 0 | L54: 0 | M54: 0
A55: Trondheim | B55: 4146481 | C55: 222947 | D55: 15049 | E55: 1677 | F55: 275.5319955 | G55: =IF(E55=0,0,C55/E55) -> 132.9439475 | H55: =IF(D55+E55=0,0,(B55+C55)/(D55+E55)) -> 261.235681 | I55: 7438241 | J55: 470188 | K55: 270.0781709 | L55: -0.4425454889 | M55: -0.03274048356
A56: Vestfold | B56: 0 | C56: 0 | D56: 0 | E56: 0 | F56: 0 | G56: 0 | H56: 0 | I56: 0 | J56: 0 | K56: 0 | L56: 0 | M56: 0
A57: Oslo | B57: 17924687 | C57: 0 | D57: 63513 | E57: 0 | F57: 282.220758 | G57: 0 | H57: 282.220758 | I57: 19491290 | J57: 0 | K57: 263.9701242 | L57: -0.080374516 | M57: 0.06913901269
A58: Østfold | B58: 5622721.69 | C58: 0 | D58: 19348.5 | E58: 0 | F58: 290.6024596 | G58: 0 | H58: 290.6024596 | I58: 2384004 | J58: 0 | K58: 301.5436377 | L58: 1.358520242 | M58: -0.03628389643
A59: Landet i alt | B59: =SUM(B47:B58) -> 30376342.15 | C59: =SUM(C47:C58) -> 222947 | D59: =SUM(D47:D58) -> 106973.12 | E59: =SUM(E47:E58) -> 1677 | F59: =IF(D59=0,0,B59/D59) -> 283.9623837 | G59: =IF(E59=0,0,C59/E59) -> 132.9439475 | H59: =IF(D59+E59=0,0,(B59+C59)/(D59+E59)) -> 281.6314345 | I59: 31623653 | J59: 470188 | K59: 270.5268193 | L59: -0.03944233925 | M59: 0.04104811184

Sheet ISOLATØR
A2: ="MÅLESTATISTIKK FOR ISOLATØRER - "&FORS!$A$14 -> MÅLESTATISTIKK FOR ISOLATØRER - 2015
B4: Målesum i kroner | D4: Timer | F4: ="Fortjeneste "&FORS!$A$14-0 -> Fortjeneste 2015 | I4: =FORS!$A$14-1 -> 2014 | L4: Endringer i %
B5: Innmålt m/ | C5: Innmålt m/ | D5: Innmålt m/ | E5: Innmålt m/ | F5: Innmålt m/ | G5: Innmålt m/ | H5: Gjennom- | I5: Innmålt m/ | J5: Innmålt m/ | K5: Gjen.snitt | L5: Innmålt m/ | M5: Gjen.snitt
B6: overskudd | C6: underskudd | D6: overskudd | E6: underskudd | F6: overskudd | G6: underskudd | H6: snitt | I6: overskudd | J6: underskudd | K6: fortjeneste | L6: overskudd | M6: fortjeneste
A7: Landet i alt 1. halvår | B7: 0 | F7: =IF(D7=0,0,B7/D7) -> 0 | G7: 0 | H7: =IF(D7+E7=0,0,(B7+C7)/(D7+E7)) -> 0 | I7: 0 | J7: 0 | K7: 0 | L7: =IF(I7=0,0,(B7-I7)/I7) -> 0 | M7: =IF(K7=0,0,(H7-K7)/K7) -> 0
A8: Landet i alt 2. halvår | F8: =IF(D8=0,0,B8/D8) -> 0 | G8: =IF(E8=0,0,C8/E8) -> 0 | H8: =IF(D8+E8=0,0,(B8+C8)/(D8+E8)) -> 0 | J8: 0 | L8: =IF(I8=0,0,(B8-I8)/I8) -> 0 | M8: =IF(K8=0,0,(H8-K8)/K8) -> 0
A9: ="Landet i alt "&FORS!A14 -> Landet i alt 2015 | B9: =SUM(B7:B8) -> 0 | C9: =SUM(C7:C8) -> 0 | D9: =SUM(D7:D8) -> 0 | E9: =SUM(E7:E8) -> 0 | F9: 0 | G9: 0 | H9: =IF(D9+E9=0,0,(B9+C9)/(D9+E9)) -> 0 | I9: =SUM(I7:I8) -> 0 | J9: =SUM(J7:J8) -> 0 | L9: 0 | M9: 0
